Workbook

Sheet Отчет
A1: Текущий рейтинг студентов (до пересдач) | BA1: Приложение 3
A2: Дата выгрузки: 20.07.2015 | BA2: к Положению о рейтинговой системе комплексной оценки знаний студентов
A3: Период: c 2014/2015 учебный год II семестр по 2014/2015 учебный год II семестр
A4: Факультет/отделение: Факультет коммуникаций, медиа и дизайна
A5: Направление подготовки: Направление "Журналистика"
A6: Уровень образования, номер курса: Бакалавриат 2 курс | G6: - студенты имеющие задолженности
F7: * | G7: - изучение по ИУП
A8: Место | B8: Студент | C8: ID | D8: Образовательная программа студента | F8: 2014/2015 учебный год 3 модуль | M8: 2014/2015 учебный год 4 модуль | AU8: Кредитно-рейтинговая оценка | AV8: Нормировочный коэффициент | AW8: Сумма всех кредитов | AX8: Нормированная кредитно-рейтинговая оценка | AY8: Сумма всех оценок | AZ8: Количество всех оценок | BA8: Средний балл | BB8: Минимальный балл | BC8: Наличие неудовлетворительных оценок и неявок | BD8: Количество удовлетворительных оценок | BE8: Номер места
F9: Экзамен | M9: Экзамен | AO9: Зачет
E10: Номер Row | F10: Иностранный язык (английский) | G10: Иностранный язык (английский) | H10: Иностранный язык (английский) | I10: Мегаполисы мира | J10: Психология (включая основы социальной психологии) | K10: Создание Интернет-проектов. Уровень 2. Язык CSS | L10: Создание Интернет-проектов. Уровень 3. Основы языка программирования JavaScript | M10: «Мягкая сила» и «управляемый хаос» - инструменты современной мировой политики | N10: Визуальная информация и визуализация данных | O10: Европейская музыка от античности до XXI века: исторические этюды | P10: Земное и внеземное: космос в науке, мифологии, искусстве и политике | Q10: Иностранный язык (немецкий) | R10: Иностранный язык (немецкий) | S10: Иностранный язык (французский) | T10: Иностранный язык (французский) | U10: Иностранный язык (французский) | V10: Исследование медиа-процессов | W10: Исследование медиа-процессов | X10: История | Y10: История | Z10: История и теория литературы | AA10: История и теория литературы | AB10: Курсовая работа | AC10: Основы операторской и режиссерской культуры для тележурналистов | AD10: Психология (включая основы социальной психологии) | AE10: Психология (включая основы социальной психологии) | AF10: Современные телевизионные форматы | AG10: Создание Интернет-проектов. Уровень 4. Основы языка программирования PHP | AH10: Теория и практика русского литературного языка | AI10: Теория и практика русского литературного языка | AJ10: Техника речи | AK10: Техника речи | AL10: Технологии манипулирования в СМИ: выявление, анализ, противодействие | AM10: Технология работы журналиста (платформы) | AN10: Язык и политика | AO10: История и теория литературы | AP10: Теория и практика русского литературного языка | AQ10: Физическая культура | AR10: Физическая культура | AS10: Физическая культура | AT10: Язык и политика
A11: Число текущих кредитов: | F11: 1.92 | G11: 3 | H11: 5 | I11: 0 | J11: 3 | K11: 0 | L11: 0 | M11: 0 | N11: 4.5 | O11: 0 | P11: 0 | Q11: 0 | R11: 5 | S11: 0 | T11: 5 | U11: 6 | V11: 1.67 | W11: 1.96 | X11: 3.6 | Y11: 7 | Z11: 3.72 | AA11: 4.03 | AB11: 5 | AC11: 3 | AD11: 3 | AE11: 6 | AF11: 3 | AG11: 0 | AH11: 3 | AI11: 4 | AJ11: 0 | AK11: 5 | AL11: 3 | AM11: 4.78 | AN11: 3 | AO11: 3.31 | AP11: 3 | AQ11: 0 | AR11: 0.25 | AS11: 0.28 | AT11: 1.5
A12: 1 | B12: Правдюк Анна Сергеевна | C12: 481500535 | D12: Журналистика | E12: =MATCH(C12,Данные!$D:$D,0) -> 93 | F12: 10 | I12: 10 | J12: 10 | Q12: 10 | V12: 10 | X12: 10 | Z12: 10 | AB12: 10 | AD12: 10 | AF12: 10 | AH12: 10 | AM12: 9 | AQ12: 10 | AU12: 322.12 | AV12: =IF(AW12 > 0, MAX(AW$12:AW$110) / AW12, 0) -> 1.314469257 | AW12: 32.69 | AX12: =AU12*AV12 -> 423.416837 | AY12: 129 | AZ12: 13 | BA12: =IF(AZ12 > 0,AY12/AZ12,0) -> 9.923076923 | BB12: =MIN($F12:AT12) -> 9 | BD12: 13 | BE12: 1 | BF12: ОК
A13: 2 | B13: Суханова Юлия Александровна | C13: 475503448 | D13: Журналистика | E13: =MATCH(C13,Данные!$D:$D,0) -> 35 | F13: 9 | J13: 9 | Q13: 9 | V13: 9 | X13: 9 | Z13: 10 | AB13: 10 | AD13: 10 | AH13: 10 | AJ13: 9 | AL13: 10 | AM13: 10 | AQ13: 10 | AU13: 316.71 | AV13: =IF(AW13 > 0, MAX(AW$12:AW$110) / AW13, 0) -> 1.314469257 | AW13: 32.69 | AX13: =AU13*AV13 -> 416.3055583 | AY13: 124 | AZ13: 13 | BA13: =IF(AZ13 > 0,AY13/AZ13,0) -> 9.538461538 | BB13: =MIN($F13:AT13) -> 9 | BD13: 13 | BE13: 2 | BF13: ОК
A14: 3 | B14: Королева Ольга Викторовна | C14: 481504458 | D14: Журналистика | E14: =MATCH(C14,Данные!$D:$D,0) -> 39 | F14: 9 | J14: 9 | K14: 8 | L14: 9 | Q14: 10 | V14: 9 | X14: 9 | Z14: 10 | AB14: 10 | AD14: 10 | AF14: 9 | AG14: 9 | AH14: 10 | AJ14: 8 | AM14: 10 | AQ14: 10 | AU14: 313.71 | AV14: =IF(AW14 > 0, MAX(AW$12:AW$110) / AW14, 0) -> 1.314469257 | AW14: 32.69 | AX14: =AU14*AV14 -> 412.3621505 | AY14: 149 | AZ14: 16 | BA14: =IF(AZ14 > 0,AY14/AZ14,0) -> 9.3125 | BB14: =MIN($F14:AT14) -> 8 | BD14: 16 | BE14: 3 | BF14: ОК
A15: 4 | B15: Лебедева Ксения Кирилловна | C15: 481500039 | D15: Журналистика | E15: =MATCH(C15,Данные!$D:$D,0) -> 90 | F15: 10 | J15: 9 | S15: 9 | V15: 9 | X15: 10 | Z15: 10 | AB15: 9 | AD15: 10 | AF15: 10 | AH15: 10 | AM15: 9 | AQ15: 10 | AU15: 312.45 | AV15: =IF(AW15 > 0, MAX(AW$12:AW$110) / AW15, 0) -> 1.314469257 | AW15: 32.69 | AX15: =AU15*AV15 -> 410.7059192 | AY15: 115 | AZ15: 12 | BA15: =IF(AZ15 > 0,AY15/AZ15,0) -> 9.583333333 | BB15: =MIN($F15:AT15) -> 9 | BD15: 12 | BE15: 4 | BF15: ОК
A16: 5 | B16: Королькова Елизавета Дмитриевна | C16: 481499652 | D16: Журналистика | E16: =MATCH(C16,Данные!$D:$D,0) -> 89 | F16: 9 | J16: 9 | Q16: 7 | V16: 9 | X16: 10 | Z16: 10 | AB16: 10 | AD16: 10 | AF16: 9 | AH16: 9 | AJ16: 9 | AM16: 9 | AQ16: 10 | AU16: 309.53 | AV16: =IF(AW16 > 0, MAX(AW$12:AW$110) / AW16, 0) -> 1.314469257 | AW16: 32.69 | AX16: =AU16*AV16 -> 406.867669 | AY16: 120 | AZ16: 13 | BA16: =IF(AZ16 > 0,AY16/AZ16,0) -> 9.230769231 | BB16: =MIN($F16:AT16) -> 7 | BD16: 13 | BE16: 5 | BF16: ОК
A17: 6 | B17: Скворцова Дарья Андреевна | C17: 475498901 | D17: Журналистика | E17: =MATCH(C17,Данные!$D:$D,0) -> 65 | F17: 9 | J17: 9 | Q17: 9 | V17: 10 | X17: 9 | Z17: 10 | AB17: 10 | AC17: 9 | AD17: 10 | AH17: 9 | AJ17: 8 | AM17: 9 | AQ17: 10 | AU17: 307.6 | AV17: =IF(AW17 > 0, MAX(AW$12:AW$110) / AW17, 0) -> 1.314469257 | AW17: 32.69 | AX17: =AU17*AV17 -> 404.3307433 | AY17: 121 | AZ17: 13 | BA17: =IF(AZ17 > 0,AY17/AZ17,0) -> 9.307692308 | BB17: =MIN($F17:AT17) -> 8 | BD17: 13 | BE17: 6 | BF17: ОК
A18: 7 - 8 | B18: Кокорева Мария Викторовна | C18: 481504306 | D18: Журналистика | E18: =MATCH(C18,Данные!$D:$D,0) -> 38 | F18: 9 | J18: 9 | V18: 9 | X18: 9 | Z18: 10 | AB18: 8 | AD18: 10 | AH18: 10 | AL18: 10 | AM18: 10 | AQ18: 10 | AU18: 306.71 | AV18: =IF(AW18 > 0, MAX(AW$12:AW$110) / AW18, 0) -> 1.314469257 | AW18: 32.69 | AX18: =AU18*AV18 -> 403.1608657 | AY18: 104 | AZ18: 11 | BA18: =IF(AZ18 > 0,AY18/AZ18,0) -> 9.454545455 | BB18: =MIN($F18:AT18) -> 8 | BD18: 11 | BE18: 7 | BF18: ОК
B19: Савина София Леонидовна | C19: 481505031 | D19: Журналистика | E19: =MATCH(C19,Данные!$D:$D,0) -> 47 | F19: 9 | J19: 9 | Q19: 9 | S19: 9 | V19: 9 | X19: 9 | Z19: 10 | AB19: 8 | AD19: 10 | AH19: 10 | AJ19: 8 | AL19: 10 | AM19: 10 | AQ19: 10 | AU19: 306.71 | AV19: =IF(AW19 > 0, MAX(AW$12:AW$110) / AW19, 0) -> 1.314469257 | AW19: 32.69 | AX19: =AU19*AV19 -> 403.1608657 | AY19: 130 | AZ19: 14 | BA19: =IF(AZ19 > 0,AY19/AZ19,0) -> 9.285714286 | BB19: =MIN($F19:AT19) -> 8 | BD19: 14 | BE19: 8 | BF19: ОК
A20: 9 | B20: Липчанская Анастасия Алексеевна | C20: 475501239 | D20: Журналистика | E20: =MATCH(C20,Данные!$D:$D,0) -> 12 | F20: 9 | J20: 10 | V20: 10 | X20: 8 | Z20: 10 | AB20: 10 | AD20: 10 | AF20: 9 | AH20: 10 | AJ20: 9 | AM20: 8 | AQ20: 10 | AU20: 305.22 | AV20: =IF(AW20 > 0, MAX(AW$12:AW$110) / AW20, 0) -> 1.314469257 | AW20: 32.69 | AX20: =AU20*AV20 -> 401.2023065 | AY20: 113 | AZ20: 12 | BA20: =IF(AZ20 > 0,AY20/AZ20,0) -> 9.416666667 | BB20: =MIN($F20:AT20) -> 8 | BD20: 12 | BE20: 9 | BF20: ОК
A21: 10 | B21: Рудакова Юлия Владиславовна | C21: 475498778 | D21: Журналистика | E21: =MATCH(C21,Данные!$D:$D,0) -> 64 | F21: 9 | J21: 9 | Q21: 9 | V21: 10 | X21: 9 | Z21: 10 | AB21: 10 | AC21: 9 | AD21: 10 | AH21: 8 | AJ21: 8 | AM21: 9 | AQ21: 10 | AU21: 304.6 | AV21: =IF(AW21 > 0, MAX(AW$12:AW$110) / AW21, 0) -> 1.314469257 | AW21: 32.69 | AX21: =AU21*AV21 -> 400.3873356 | AY21: 120 | AZ21: 13 | BA21: =IF(AZ21 > 0,AY21/AZ21,0) -> 9.230769231 | BB21: =MIN($F21:AT21) -> 8 | BD21: 13 | BE21: 10 | BF21: ОК
A22: 11 | B22: Морозова Николь Дмитриевна | C22: 481497225 | D22: Журналистика | E22: =MATCH(C22,Данные!$D:$D,0) -> 83 | F22: 9 | J22: 9 | O22: 9 | Q22: 9 | V22: 9 | X22: 8 | Z22: 9 | AB22: 10 | AC22: 10 | AD22: 9 | AH22: 10 | AJ22: 10 | AM22: 9 | AQ22: 10 | AU22: 301.61 | AV22: =IF(AW22 > 0, MAX(AW$12:AW$110) / AW22, 0) -> 1.314469257 | AW22: 32.69 | AX22: =AU22*AV22 -> 396.4570725 | AY22: 130 | AZ22: 14 | BA22: =IF(AZ22 > 0,AY22/AZ22,0) -> 9.285714286 | BB22: =MIN($F22:AT22) -> 8 | BD22: 14 | BE22: 11 | BF22: ОК
A23: 12 | B23: Ревоненко Анна Николаевна | C23: 481500688 | D23: Журналистика | E23: =MATCH(C23,Данные!$D:$D,0) -> 94 | F23: 9 | J23: 9 | S23: 9 | V23: 8 | X23: 8 | Z23: 10 | AB23: 10 | AD23: 9 | AH23: 9 | AJ23: 10 | AL23: 8 | AM23: 10 | AQ23: 10 | AU23: 299.44 | AV23: =IF(AW23 > 0, MAX(AW$12:AW$110) / AW23, 0) -> 1.314469257 | AW23: 32.69 | AX23: =AU23*AV23 -> 393.6046742 | AY23: 119 | AZ23: 13 | BA23: =IF(AZ23 > 0,AY23/AZ23,0) -> 9.153846154 | BB23: =MIN($F23:AT23) -> 8 | BD23: 13 | BE23: 12 | BF23: ОК
A24: 13 | B24: Чернова Кристина Валериевна | C24: 475501776 | D24: Журналистика | E24: =MATCH(C24,Данные!$D:$D,0) -> 16 | F24: 9 | J24: 8 | O24: 9 | Q24: 8 | S24: 9 | V24: 9 | X24: 8 | Z24: 10 | AB24: 10 | AD24: 8 | AF24: 8 | AH24: 10 | AL24: 8 | AM24: 10 | AQ24: 10 | AU24: 298.11 | AV24: =IF(AW24 > 0, MAX(AW$12:AW$110) / AW24, 0) -> 1.314469257 | AW24: 32.69 | AX24: =AU24*AV24 -> 391.8564301 | AY24: 134 | AZ24: 15 | BA24: =IF(AZ24 > 0,AY24/AZ24,0) -> 8.933333333 | BB24: =MIN($F24:AT24) -> 8 | BD24: 15 | BE24: 13 | BF24: ОК
A25: 14 | B25: Рублева Милена Валерьевна | C25: 475501513 | D25: Журналистика | E25: =MATCH(C25,Данные!$D:$D,0) -> 14 | F25: 10 | J25: 9 | S25: 10 | V25: 9 | X25: 9 | Z25: 10 | AB25: 10 | AD25: 8 | AH25: 10 | AJ25: 8 | AL25: 8 | AM25: 8 | AQ25: 10 | AU25: 297.07 | AV25: =IF(AW25 > 0, MAX(AW$12:AW$110) / AW25, 0) -> 1.314469257 | AW25: 32.69 | AX25: =AU25*AV25 -> 390.4893821 | AY25: 119 | AZ25: 13 | BA25: =IF(AZ25 > 0,AY25/AZ25,0) -> 9.153846154 | BB25: =MIN($F25:AT25) -> 8 | BD25: 13 | BE25: 14 | BF25: ОК
A26: 15 | B26: Мусина Юлия Маратовна | C26: 475563331 | D26: Журналистика | E26: =MATCH(C26,Данные!$D:$D,0) -> 63 | F26: 9 | J26: 9 | S26: 9 | V26: 9 | X26: 8 | Z26: 8 | AB26: 10 | AC26: 10 | AD26: 9 | AH26: 8 | AJ26: 9 | AM26: 10 | AQ26: 10 | AU26: 296.67 | AV26: =IF(AW26 > 0, MAX(AW$12:AW$110) / AW26, 0) -> 1.314469257 | AW26: 32.69 | AX26: =AU26*AV26 -> 389.9635944 | AY26: 118 | AZ26: 13 | BA26: =IF(AZ26 > 0,AY26/AZ26,0) -> 9.076923077 | BB26: =MIN($F26:AT26) -> 8 | BD26: 13 | BE26: 15 | BF26: ОК
A27: 16 | B27: Яковец Елизавета Николаевна | C27: 475497867 | D27: Журналистика | E27: =MATCH(C27,Данные!$D:$D,0) -> 75 | F27: 9 | J27: 7 | V27: 9 | X27: 9 | Z27: 9 | AB27: 10 | AD27: 10 | AF27: 8 | AH27: 10 | AJ27: 7 | AM27: 9 | AQ27: 10 | AU27: 296.21 | AV27: =IF(AW27 > 0, MAX(AW$12:AW$110) / AW27, 0) -> 1.314469257 | AW27: 32.69 | AX27: =AU27*AV27 -> 389.3589385 | AY27: 107 | AZ27: 12 | BA27: =IF(AZ27 > 0,AY27/AZ27,0) -> 8.916666667 | BB27: =MIN($F27:AT27) -> 7 | BD27: 12 | BE27: 16 | BF27: ОК
A28: 17 | B28: Герасимова Мария Александровна | C28: 475562579 | D28: Журналистика | E28: =MATCH(C28,Данные!$D:$D,0) -> 59 | F28: 9 | J28: 10 | V28: 9 | X28: 9 | Z28: 9 | AB28: 10 | AD28: 8 | AH28: 9 | AL28: 9 | AM28: 8 | AQ28: 10 | AU28: 294.43 | AV28: =IF(AW28 > 0, MAX(AW$12:AW$110) / AW28, 0) -> 1.314469257 | AW28: 32.69 | AX28: =AU28*AV28 -> 387.0191832 | AY28: 100 | AZ28: 11 | BA28: =IF(AZ28 > 0,AY28/AZ28,0) -> 9.090909091 | BB28: =MIN($F28:AT28) -> 8 | BD28: 11 | BE28: 17 | BF28: ОК
A29: 18 | B29: Николаева Мария Дмитриевна | C29: 475497479 | D29: Журналистика | E29: =MATCH(C29,Данные!$D:$D,0) -> 72 | F29: 9 | J29: 7 | Q29: 9 | V29: 9 | X29: 8 | Z29: 9 | AB29: 10 | AD29: 8 | AF29: 10 | AH29: 10 | AM29: 9 | AQ29: 10 | AU29: 292.61 | AV29: =IF(AW29 > 0, MAX(AW$12:AW$110) / AW29, 0) -> 1.314469257 | AW29: 32.69 | AX29: =AU29*AV29 -> 384.6268492 | AY29: 108 | AZ29: 12 | BA29: =IF(AZ29 > 0,AY29/AZ29,0) -> 9 | BB29: =MIN($F29:AT29) -> 7 | BD29: 12 | BE29: 18 | BF29: ОК
A30: 19 | B30: Федорова Анастасия Александровна | C30: 475499056 | D30: Журналистика | E30: =MATCH(C30,Данные!$D:$D,0) -> 66 | F30: 9 | J30: 9 | S30: 8 | V30: 10 | X30: 8 | Z30: 9 | AB30: 9 | AD30: 10 | AF30: 9 | AH30: 8 | AJ30: 7 | AM30: 9 | AQ30: 10 | AU30: 292.28 | AV30: =IF(AW30 > 0, MAX(AW$12:AW$110) / AW30, 0) -> 1.314469257 | AW30: 32.69 | AX30: =AU30*AV30 -> 384.1930743 | AY30: 115 | AZ30: 13 | BA30: =IF(AZ30 > 0,AY30/AZ30,0) -> 8.846153846 | BB30: =MIN($F30:AT30) -> 7 | BD30: 13 | BE30: 19 | BF30: ОК
A31: 20 | B31: Вильшанская Елена Андреевна | C31: 475500480 | D31: Журналистика | E31: =MATCH(C31,Данные!$D:$D,0) -> 7 | F31: 9 | J31: 9 | Q31: 9 | S31: 8 | V31: 8 | X31: 8 | Z31: 8 | AB31: 10 | AC31: 10 | AD31: 8 | AH31: 8 | AJ31: 9 | AM31: 10 | AQ31: 10 | AU31: 292 | AV31: =IF(AW31 > 0, MAX(AW$12:AW$110) / AW31, 0) -> 1.314469257 | AW31: 32.69 | AX31: =AU31*AV31 -> 383.8250229 | AY31: 124 | AZ31: 14 | BA31: =IF(AZ31 > 0,AY31/AZ31,0) -> 8.857142857 | BB31: =MIN($F31:AT31) -> 8 | BD31: 14 | BE31: 20 | BF31: ОК
A32: 21 | B32: Круглова Ирина Викторовна | C32: 481504593 | D32: Журналистика | E32: =MATCH(C32,Данные!$D:$D,0) -> 40 | F32: 8 | J32: 9 | V32: 7 | X32: 9 | Z32: 9 | AB32: 8 | AD32: 8 | AH32: 10 | AJ32: 7 | AL32: 10 | AM32: 10 | AQ32: 10 | AU32: 291.73 | AV32: =IF(AW32 > 0, MAX(AW$12:AW$110) / AW32, 0) -> 1.314469257 | AW32: 32.69 | AX32: =AU32*AV32 -> 383.4701162 | AY32: 105 | AZ32: 12 | BA32: =IF(AZ32 > 0,AY32/AZ32,0) -> 8.75 | BB32: =MIN($F32:AT32) -> 7 | BD32: 12 | BE32: 21 | BF32: ОК
A33: 22 | B33: Афанасьева Татьяна Валерьевна | C33: 481496658 | D33: Журналистика | E33: =MATCH(C33,Данные!$D:$D,0) -> 80 | F33: 9 | J33: 8 | S33: 8 | V33: 8 | X33: 8 | Z33: 9 | AB33: 10 | AD33: 10 | AH33: 9 | AM33: 9 | AN33: 8 | AQ33: 10 | AU33: 290.94 | AV33: =IF(AW33 > 0, MAX(AW$12:AW$110) / AW33, 0) -> 1.314469257 | AW33: 32.69 | AX33: =AU33*AV33 -> 382.4316855 | AY33: 106 | AZ33: 12 | BA33: =IF(AZ33 > 0,AY33/AZ33,0) -> 8.833333333 | BB33: =MIN($F33:AT33) -> 8 | BD33: 12 | BE33: 22 | BF33: ОК
A34: 23 | B34: Булатова Катерина Николаевна | C34: 475498195 | D34: Журналистика | E34: =MATCH(C34,Данные!$D:$D,0) -> 76 | F34: 9 | J34: 8 | Q34: 9 | V34: 9 | X34: 7 | Z34: 9 | AB34: 9 | AC34: 10 | AD34: 10 | AH34: 9 | AJ34: 9 | AM34: 9 | AQ34: 10 | AU34: 290.01 | AV34: =IF(AW34 > 0, MAX(AW$12:AW$110) / AW34, 0) -> 1.314469257 | AW34: 32.69 | AX34: =AU34*AV34 -> 381.2092291 | AY34: 117 | AZ34: 13 | BA34: =IF(AZ34 > 0,AY34/AZ34,0) -> 9 | BB34: =MIN($F34:AT34) -> 7 | BD34: 13 | BE34: 23 | BF34: ОК
A35: 24 | B35: Молоствова Анна Александровна | C35: 481501975 | D35: Журналистика | E35: =MATCH(C35,Данные!$D:$D,0) -> 98 | F35: 9 | J35: 9 | Q35: 8 | V35: 10 | X35: 9 | Z35: 10 | AB35: 8 | AD35: 10 | AF35: 9 | AH35: 8 | AJ35: 9 | AM35: 8 | AQ35: 10 | AU35: 289.82 | AV35: =IF(AW35 > 0, MAX(AW$12:AW$110) / AW35, 0) -> 1.314469257 | AW35: 32.69 | AX35: =AU35*AV35 -> 380.95948 | AY35: 117 | AZ35: 13 | BA35: =IF(AZ35 > 0,AY35/AZ35,0) -> 9 | BB35: =MIN($F35:AT35) -> 8 | BD35: 13 | BE35: 24 | BF35: ОК
A36: 25 | B36: Литвякова Евдокия Алексеевна | C36: 475502924 | D36: Журналистика | E36: =MATCH(C36,Данные!$D:$D,0) -> 20 | F36: 9 | J36: 8 | Q36: 7 | V36: 8 | X36: 8 | Z36: 10 | AB36: 7 | AD36: 10 | AH36: 9 | AJ36: 9 | AL36: 9 | AM36: 10 | AQ36: 10 | AU36: 287.44 | AV36: =IF(AW36 > 0, MAX(AW$12:AW$110) / AW36, 0) -> 1.314469257 | AW36: 32.69 | AX36: =AU36*AV36 -> 377.8310431 | AY36: 114 | AZ36: 13 | BA36: =IF(AZ36 > 0,AY36/AZ36,0) -> 8.769230769 | BB36: =MIN($F36:AT36) -> 7 | BD36: 13 | BE36: 25 | BF36: ОК
A37: 26 | B37: Огурцова Евгения Алексеевна | C37: 475498638 | D37: Журналистика | E37: =MATCH(C37,Данные!$D:$D,0) -> 78 | F37: 9 | J37: 9 | S37: 10 | V37: 9 | X37: 9 | Z37: 10 | AB37: 8 | AC37: 9 | AD37: 8 | AH37: 8 | AM37: 9 | AQ37: 10 | AU37: 286.93 | AV37: =IF(AW37 > 0, MAX(AW$12:AW$110) / AW37, 0) -> 1.314469257 | AW37: 32.69 | AX37: =AU37*AV37 -> 377.1606638 | AY37: 108 | AZ37: 12 | BA37: =IF(AZ37 > 0,AY37/AZ37,0) -> 9 | BB37: =MIN($F37:AT37) -> 8 | BD37: 12 | BE37: 26 | BF37: ОК
A38: 27 | B38: Робул Павел Константинович | C38: 475503187 | D38: Журналистика | E38: =MATCH(C38,Данные!$D:$D,0) -> 22 | F38: 8 | J38: 8 | V38: 8 | X38: 8 | Z38: 10 | AB38: 9 | AD38: 7 | AH38: 8 | AL38: 10 | AM38: 10 | AQ38: 10 | AU38: 286.52 | AV38: =IF(AW38 > 0, MAX(AW$12:AW$110) / AW38, 0) -> 1.314469257 | AW38: 32.69 | AX38: =AU38*AV38 -> 376.6217314 | AY38: 96 | AZ38: 11 | BA38: =IF(AZ38 > 0,AY38/AZ38,0) -> 8.727272727 | BB38: =MIN($F38:AT38) -> 7 | BD38: 11 | BE38: 27 | BF38: ОК
A39: 28 | B39: Аммосова Людмила Михайловна | C39: 475562216 | D39: Журналистика | E39: =MATCH(C39,Данные!$D:$D,0) -> 57 | F39: 9 | J39: 8 | S39: 9 | V39: 8 | X39: 6 | Z39: 8 | AB39: 9 | AC39: 10 | AD39: 10 | AH39: 9 | AJ39: 9 | AM39: 10 | AQ39: 10 | AU39: 285.8 | AV39: =IF(AW39 > 0, MAX(AW$12:AW$110) / AW39, 0) -> 1.314469257 | AW39: 32.69 | AX39: =AU39*AV39 -> 375.6753136 | AY39: 115 | AZ39: 13 | BA39: =IF(AZ39 > 0,AY39/AZ39,0) -> 8.846153846 | BB39: =MIN($F39:AT39) -> 6 | BD39: 13 | BE39: 28 | BF39: ОК
A40: 29 | B40: Дмитриева Екатерина Александровна | C40: 475500772 | D40: Журналистика | E40: =MATCH(C40,Данные!$D:$D,0) -> 9 | F40: 9 | J40: 9 | Q40: 9 | V40: 8 | X40: 8 | Z40: 8 | AB40: 10 | AD40: 9 | AH40: 9 | AJ40: 9 | AL40: 8 | AM40: 8 | AQ40: 10 | AU40: 282.44 | AV40: =IF(AW40 > 0, MAX(AW$12:AW$110) / AW40, 0) -> 1.314469257 | AW40: 32.69 | AX40: =AU40*AV40 -> 371.2586968 | AY40: 114 | AZ40: 13 | BA40: =IF(AZ40 > 0,AY40/AZ40,0) -> 8.769230769 | BB40: =MIN($F40:AT40) -> 8 | BD40: 13 | BE40: 29 | BF40: ОК
A41: 30 | B41: Головина Евгения Павловна | C41: 475500628 | D41: Журналистика | E41: =MATCH(C41,Данные!$D:$D,0) -> 8 | F41: 9 | J41: 8 | V41: 8 | X41: 8 | Z41: 10 | AB41: 9 | AD41: 10 | AH41: 9 | AL41: 7 | AM41: 8 | AN41: 7 | AQ41: 10 | AU41: 281.88 | AV41: =IF(AW41 > 0, MAX(AW$12:AW$110) / AW41, 0) -> 1.314469257 | AW41: 32.69 | AX41: =AU41*AV41 -> 370.5225941 | AY41: 103 | AZ41: 12 | BA41: =IF(AZ41 > 0,AY41/AZ41,0) -> 8.583333333 | BB41: =MIN($F41:AT41) -> 7 | BD41: 12 | BE41: 30 | BF41: ОК
A42: 31 | B42: Чернышева Евгения Эдуардовна | C42: 475501916 | D42: Журналистика | E42: =MATCH(C42,Данные!$D:$D,0) -> 17 | F42: 9 | J42: 8 | M42: 10 | Q42: 8 | V42: 7 | X42: 8 | Z42: 9 | AB42: 10 | AD42: 9 | AH42: 8 | AJ42: 8 | AL42: 9 | AM42: 8 | AQ42: 10 | AU42: 281.49 | AV42: =IF(AW42 > 0, MAX(AW$12:AW$110) / AW42, 0) -> 1.314469257 | AW42: 32.69 | AX42: =AU42*AV42 -> 370.0099511 | AY42: 121 | AZ42: 14 | BA42: =IF(AZ42 > 0,AY42/AZ42,0) -> 8.642857143 | BB42: =MIN($F42:AT42) -> 7 | BD42: 14 | BE42: 31 | BF42: ОК
A43: 32 | B43: Вагапова Юлия Рстамовна | C43: 475502663 | D43: Журналистика | E43: =MATCH(C43,Данные!$D:$D,0) -> 18 | F43: 8 | J43: 7 | Q43: 8 | V43: 7 | X43: 8 | Z43: 9 | AB43: 10 | AD43: 9 | AF43: 9 | AH43: 8 | AM43: 9 | AQ43: 10 | AU43: 281.35 | AV43: =IF(AW43 > 0, MAX(AW$12:AW$110) / AW43, 0) -> 1.314469257 | AW43: 32.69 | AX43: =AU43*AV43 -> 369.8259254 | AY43: 102 | AZ43: 12 | BA43: =IF(AZ43 > 0,AY43/AZ43,0) -> 8.5 | BB43: =MIN($F43:AT43) -> 7 | BD43: 12 | BE43: 32 | BF43: ОК
A44: 33 | B44: Астапенко Ольга Юрьевна | C44: 474332631 | D44: Журналистика | E44: =MATCH(C44,Данные!$D:$D,0) -> 79 | F44: 9 | J44: 8 | V44: 6 | X44: 5 | Z44: 9 | AB44: 10 | AD44: 9 | AF44: 9 | AH44: 10 | AJ44: 5 | AM44: 9 | AQ44: 10 | AU44: 279.8 | AV44: =IF(AW44 > 0, MAX(AW$12:AW$110) / AW44, 0) -> 1.314469257 | AW44: 32.69 | AX44: =AU44*AV44 -> 367.788498 | AY44: 99 | AZ44: 12 | BA44: =IF(AZ44 > 0,AY44/AZ44,0) -> 8.25 | BB44: =MIN($F44:AT44) -> 5 | BD44: 12 | BE44: 33 | BF44: ОК
A45: 34 | B45: Русских Арина Сергеевна | C45: 481504898 | D45: Журналистика | E45: =MATCH(C45,Данные!$D:$D,0) -> 42 | F45: 9 | J45: 6 | V45: 9 | X45: 8 | Z45: 7 | AB45: 9 | AD45: 10 | AF45: 8 | AH45: 10 | AM45: 9 | AQ45: 10 | AU45: 277.17 | AV45: =IF(AW45 > 0, MAX(AW$12:AW$110) / AW45, 0) -> 1.314469257 | AW45: 32.69 | AX45: =AU45*AV45 -> 364.3314439 | AY45: 95 | AZ45: 11 | BA45: =IF(AZ45 > 0,AY45/AZ45,0) -> 8.636363636 | BB45: =MIN($F45:AT45) -> 6 | BD45: 11 | BE45: 34 | BF45: ОК
A46: 35 | B46: Голованов Сергей Сергеевич | C46: 481499019 | D46: Журналистика | E46: =MATCH(C46,Данные!$D:$D,0) -> 87 | F46: 9 | J46: 8 | V46: 7 | X46: 6 | Z46: 9 | AB46: 9 | AC46: 10 | AD46: 9 | AH46: 8 | AM46: 9 | AQ46: 10 | AU46: 277.07 | AV46: =IF(AW46 > 0, MAX(AW$12:AW$110) / AW46, 0) -> 1.314469257 | AW46: 32.69 | AX46: =AU46*AV46 -> 364.1999969 | AY46: 94 | AZ46: 11 | BA46: =IF(AZ46 > 0,AY46/AZ46,0) -> 8.545454545 | BB46: =MIN($F46:AT46) -> 6 | BD46: 11 | BE46: 35 | BF46: ОК
A47: 36 | B47: Маленкова Мария Александровна | C47: 475565410 | D47: Журналистика | E47: =MATCH(C47,Данные!$D:$D,0) -> 31 | F47: 7 | J47: 6 | S47: н/я | V47: 7 | X47: 8 | Z47: 8 | AB47: 8 | AD47: 10 | AF47: 9 | AH47: 10 | AM47: 10 | AQ47: 10 | AU47: 276.49 | AV47: =IF(AW47 > 0, MAX(AW$12:AW$110) / AW47, 0) -> 1.314469257 | AW47: 32.69 | AX47: =AU47*AV47 -> 363.4376048 | AY47: 93 | AZ47: 11 | BA47: =IF(AZ47 > 0,AY47/AZ47,0) -> 8.454545455 | BB47: =MIN($F47:AT47) -> 6 | BD47: 11 | BE47: 36 | BF47: ОК
A48: 37 | B48: Кокшарова Александра Игоревна | C48: 475501085 | D48: Журналистика | E48: =MATCH(C48,Данные!$D:$D,0) -> 11 | F48: 8 | J48: 8 | Q48: 6 | V48: 8 | X48: 6 | Z48: 7 | AB48: 10 | AD48: 9 | AH48: 8 | AJ48: 7 | AM48: 10 | AN48: 9 | AQ48: 10 | AU48: 276.16 | AV48: =IF(AW48 > 0, MAX(AW$12:AW$110) / AW48, 0) -> 1.314469257 | AW48: 32.69 | AX48: =AU48*AV48 -> 363.0038299 | AY48: 106 | AZ48: 13 | BA48: =IF(AZ48 > 0,AY48/AZ48,0) -> 8.153846154 | BB48: =MIN($F48:AT48) -> 6 | BD48: 13 | BE48: 37 | BF48: ОК
A49: 38 | B49: Зражаева Алина Сергеевна | C49: 475565084 | D49: Журналистика | E49: =MATCH(C49,Данные!$D:$D,0) -> 29 | F49: 8 | J49: 9 | Q49: 8 | V49: 8 | X49: 6 | Z49: 10 | AB49: 7 | AD49: 9 | AH49: 10 | AL49: 10 | AM49: 8 | AQ49: 10 | AU49: 274.76 | AV49: =IF(AW49 > 0, MAX(AW$12:AW$110) / AW49, 0) -> 1.314469257 | AW49: 32.69 | AX49: =AU49*AV49 -> 361.163573 | AY49: 103 | AZ49: 12 | BA49: =IF(AZ49 > 0,AY49/AZ49,0) -> 8.583333333 | BB49: =MIN($F49:AT49) -> 6 | BD49: 12 | BE49: 38 | BF49: ОК
A50: 39 | B50: Ставрианиди Анна Георгиевна | C50: 475497611 | D50: Журналистика | E50: =MATCH(C50,Данные!$D:$D,0) -> 73 | F50: 9 | J50: 8 | Q50: 6 | S50: 7 | V50: 9 | X50: 6 | Z50: 8 | AB50: 9 | AC50: 10 | AD50: 6 | AH50: 10 | AJ50: 8 | AM50: 9 | AQ50: 10 | AU50: 273.69 | AV50: =IF(AW50 > 0, MAX(AW$12:AW$110) / AW50, 0) -> 1.314469257 | AW50: 32.69 | AX50: =AU50*AV50 -> 359.7570909 | AY50: 115 | AZ50: 14 | BA50: =IF(AZ50 > 0,AY50/AZ50,0) -> 8.214285714 | BB50: =MIN($F50:AT50) -> 6 | BD50: 14 | BE50: 39 | BF50: ОК
A51: 40 | B51: Гимаева Жанна Эмзаровна | C51: 475564642 | D51: Журналистика | E51: =MATCH(C51,Данные!$D:$D,0) -> 26 | F51: 8 | J51: 6 | V51: 8 | X51: 8 | Z51: 9 | AB51: 8 | AD51: 10 | AF51: 8 | AH51: 9 | AJ51: 9 | AM51: 9 | AQ51: 10 | AU51: 273.02 | AV51: =IF(AW51 > 0, MAX(AW$12:AW$110) / AW51, 0) -> 1.314469257 | AW51: 32.69 | AX51: =AU51*AV51 -> 358.8763965 | AY51: 102 | AZ51: 12 | BA51: =IF(AZ51 > 0,AY51/AZ51,0) -> 8.5 | BB51: =MIN($F51:AT51) -> 6 | BD51: 12 | BE51: 40 | BF51: ОК
A52: 41 | B52: Тищенко Виктория Андреевна | C52: 475497743 | D52: Журналистика | E52: =MATCH(C52,Данные!$D:$D,0) -> 74 | F52: 9 | J52: 8 | S52: 9 | V52: 7 | X52: 8 | Z52: 9 | AB52: 9 | AC52: 10 | AD52: 5 | AH52: 8 | AM52: 9 | AQ52: 10 | AU52: 272.27 | AV52: =IF(AW52 > 0, MAX(AW$12:AW$110) / AW52, 0) -> 1.314469257 | AW52: 32.69 | AX52: =AU52*AV52 -> 357.8905445 | AY52: 101 | AZ52: 12 | BA52: =IF(AZ52 > 0,AY52/AZ52,0) -> 8.416666667 | BB52: =MIN($F52:AT52) -> 5 | BD52: 12 | BE52: 41 | BF52: ОК
A53: 42 | B53: Таиров Ринат Маратович | C53: 475503575 | D53: Журналистика | E53: =MATCH(C53,Данные!$D:$D,0) -> 36 | F53: 8 | J53: 7 | Q53: 9 | V53: 8 | X53: 8 | Z53: 10 | AB53: 7 | AD53: 7 | AF53: 9 | AH53: 10 | AJ53: 9 | AM53: 9 | AQ53: 10 | AU53: 271.74 | AV53: =IF(AW53 > 0, MAX(AW$12:AW$110) / AW53, 0) -> 1.314469257 | AW53: 32.69 | AX53: =AU53*AV53 -> 357.1938758 | AY53: 111 | AZ53: 13 | BA53: =IF(AZ53 > 0,AY53/AZ53,0) -> 8.538461538 | BB53: =MIN($F53:AT53) -> 7 | BD53: 13 | BE53: 42 | BF53: ОК
A54: 43 | B54: Нещадимова Дарья Викторовна | C54: 481497484 | D54: Журналистика | E54: =MATCH(C54,Данные!$D:$D,0) -> 85 | F54: 0 | J54: 8 | S54: 9 | V54: 9 | X54: 8 | Z54: 9 | AB54: 9 | AD54: 8 | AF54: 9 | AH54: 10 | AJ54: 8 | AM54: 9 | AQ54: 10 | AU54: 270.33 | AV54: =IF(AW54 > 0, MAX(AW$12:AW$110) / AW54, 0) -> 1.314469257 | AW54: 32.69 | AX54: =AU54*AV54 -> 355.3404742 | AY54: 106 | AZ54: 13 | BA54: =IF(AZ54 > 0,AY54/AZ54,0) -> 8.153846154 | BB54: =MIN($F54:AT54) -> 0 | BC54: Да | BD54: 12 | BE54: 43 | BF54: ОК
A55: 44 | B55: Пржевальская Анастасия Всеволодовна | C55: 475558722 | D55: Журналистика | E55: =MATCH(C55,Данные!$D:$D,0) -> 46 | F55: 9 | J55: 6 | P55: 10 | Q55: 7 | V55: 8 | X55: 8 | Z55: 10 | AB55: 8 | AD55: 7 | AH55: 8 | AM55: 9 | AN55: 9 | AQ55: 10 | AU55: 269.66 | AV55: =IF(AW55 > 0, MAX(AW$12:AW$110) / AW55, 0) -> 1.314469257 | AW55: 32.69 | AX55: =AU55*AV55 -> 354.4597797 | AY55: 109 | AZ55: 13 | BA55: =IF(AZ55 > 0,AY55/AZ55,0) -> 8.384615385 | BB55: =MIN($F55:AT55) -> 6 | BD55: 13 | BE55: 44 | BF55: ОК
A56: 45 | B56: Муратова Анастасия Александровна | C56: 481497357 | D56: Журналистика | E56: =MATCH(C56,Данные!$D:$D,0) -> 84 | F56: 8 | J56: 8 | V56: 8 | X56: 7 | Z56: 6 | AB56: 9 | AD56: 7 | AH56: 9 | AL56: 10 | AM56: 9 | AQ56: 10 | AU56: 266.26 | AV56: =IF(AW56 > 0, MAX(AW$12:AW$110) / AW56, 0) -> 1.314469257 | AW56: 32.69 | AX56: =AU56*AV56 -> 349.9905843 | AY56: 91 | AZ56: 11 | BA56: =IF(AZ56 > 0,AY56/AZ56,0) -> 8.272727273 | BB56: =MIN($F56:AT56) -> 6 | BD56: 11 | BE56: 45 | BF56: ОК
A57: 46 | B57: Пятибратова Екатерина Васильевна | C57: 475501379 | D57: Журналистика | E57: =MATCH(C57,Данные!$D:$D,0) -> 13 | F57: 9 | J57: 8 | V57: 7 | X57: 8 | Z57: 8 | AB57: 7 | AD57: 10 | AH57: 9 | AL57: 8 | AM57: 8 | AQ57: 10 | AU57: 265.77 | AV57: =IF(AW57 > 0, MAX(AW$12:AW$110) / AW57, 0) -> 1.314469257 | AW57: 32.69 | AX57: =AU57*AV57 -> 349.3464943 | AY57: 92 | AZ57: 11 | BA57: =IF(AZ57 > 0,AY57/AZ57,0) -> 8.363636364 | BB57: =MIN($F57:AT57) -> 7 | BD57: 11 | BE57: 46 | BF57: ОК
A58: 47 | B58: Титов Игорь Игоревич | C58: 481502259 | D58: Журналистика | E58: =MATCH(C58,Данные!$D:$D,0) -> 37 | F58: 9 | J58: 7 | O58: 7 | S58: 8 | V58: 7 | X58: 7 | Z58: 8 | AB58: 10 | AC58: 8 | AD58: 7 | AH58: 8 | AM58: 8 | AQ58: 10 | AU58: 262.17 | AV58: =IF(AW58 > 0, MAX(AW$12:AW$110) / AW58, 0) -> 1.314469257 | AW58: 32.69 | AX58: =AU58*AV58 -> 344.614405 | AY58: 104 | AZ58: 13 | BA58: =IF(AZ58 > 0,AY58/AZ58,0) -> 8 | BB58: =MIN($F58:AT58) -> 7 | BD58: 13 | BE58: 47 | BF58: ОК
A59: 48 | B59: Дмитриева Ольга Олеговна | C59: 475498343 | D59: Журналистика | E59: =MATCH(C59,Данные!$D:$D,0) -> 77 | F59: 9 | J59: 8 | S59: 6 | V59: 5 | X59: 5 | Z59: 7 | AB59: 9 | AC59: 10 | AD59: 7 | AH59: 8 | AJ59: 6 | AM59: 10 | AQ59: 10 | AU59: 261.47 | AV59: =IF(AW59 > 0, MAX(AW$12:AW$110) / AW59, 0) -> 1.314469257 | AW59: 32.69 | AX59: =AU59*AV59 -> 343.6942765 | AY59: 100 | AZ59: 13 | BA59: =IF(AZ59 > 0,AY59/AZ59,0) -> 7.692307692 | BB59: =MIN($F59:AT59) -> 5 | BD59: 13 | BE59: 48 | BF59: ОК
A60: 49 | B60: Сидоров Всеволод Дмитриевич | C60: 481502112 | D60: Журналистика | E60: =MATCH(C60,Данные!$D:$D,0) -> 99 | F60: 9 | J60: 8 | Q60: 7 | V60: 6 | X60: 8 | Z60: 7 | AB60: 9 | AC60: 8 | AD60: 8 | AH60: 8 | AJ60: 8 | AM60: 8 | AQ60: 10 | AU60: 261.38 | AV60: =IF(AW60 > 0, MAX(AW$12:AW$110) / AW60, 0) -> 1.314469257 | AW60: 32.69 | AX60: =AU60*AV60 -> 343.5759743 | AY60: 104 | AZ60: 13 | BA60: =IF(AZ60 > 0,AY60/AZ60,0) -> 8 | BB60: =MIN($F60:AT60) -> 6 | BD60: 13 | BE60: 49 | BF60: ОК
A61: 50 | B61: Цегалко Яна Николаевна | C61: 481500835 | D61: Журналистика | E61: =MATCH(C61,Данные!$D:$D,0) -> 95 | F61: 8 | J61: 7 | O61: 8 | V61: 8 | X61: 8 | Z61: 9 | AB61: 6 | AD61: 10 | AH61: 9 | AJ61: 9 | AL61: 8 | AM61: 8 | AQ61: 10 | AU61: 261.24 | AV61: =IF(AW61 > 0, MAX(AW$12:AW$110) / AW61, 0) -> 1.314469257 | AW61: 32.69 | AX61: =AU61*AV61 -> 343.3919486 | AY61: 108 | AZ61: 13 | BA61: =IF(AZ61 > 0,AY61/AZ61,0) -> 8.307692308 | BB61: =MIN($F61:AT61) -> 6 | BD61: 13 | BE61: 50 | BF61: ОК
A62: 51 | B62: Дергалов Руслан Сергеевич | C62: 475502790 | D62: Журналистика | E62: =MATCH(C62,Данные!$D:$D,0) -> 19 | F62: 8 | J62: 6 | Q62: 10 | V62: 7 | X62: 6 | Z62: 8 | AB62: 9 | AD62: 8 | AH62: 8 | AJ62: 9 | AL62: 8 | AM62: 10 | AQ62: 10 | AU62: 261.21 | AV62: =IF(AW62 > 0, MAX(AW$12:AW$110) / AW62, 0) -> 1.314469257 | AW62: 32.69 | AX62: =AU62*AV62 -> 343.3525145 | AY62: 107 | AZ62: 13 | BA62: =IF(AZ62 > 0,AY62/AZ62,0) -> 8.230769231 | BB62: =MIN($F62:AT62) -> 6 | BD62: 13 | BE62: 51 | BF62: ОК
A63: 52 | B63: Якубович Анастасия Александровна | C63: 475499320 | D63: Журналистика | E63: =MATCH(C63,Данные!$D:$D,0) -> 6 | F63: 8 | J63: 8 | S63: 9 | V63: 8 | X63: 5 | Z63: 10 | AB63: 8 | AD63: 7 | AF63: 9 | AH63: 9 | AM63: 8 | AQ63: 10 | AU63: 261.16 | AV63: =IF(AW63 > 0, MAX(AW$12:AW$110) / AW63, 0) -> 1.314469257 | AW63: 32.69 | AX63: =AU63*AV63 -> 343.2867911 | AY63: 99 | AZ63: 12 | BA63: =IF(AZ63 > 0,AY63/AZ63,0) -> 8.25 | BB63: =MIN($F63:AT63) -> 5 | BD63: 12 | BE63: 52 | BF63: ОК
A64: 53 | B64: Стрельцова Наталья Сергеевна | C64: 475501641 | D64: Журналистика | E64: =MATCH(C64,Данные!$D:$D,0) -> 15 | F64: 9 | J64: 8 | S64: 9 | V64: 7 | X64: 9 | Z64: 7 | AB64: 9 | AD64: 6 | AH64: 8 | AL64: 8 | AM64: 8 | AQ64: 10 | AU64: 260.65 | AV64: =IF(AW64 > 0, MAX(AW$12:AW$110) / AW64, 0) -> 1.314469257 | AW64: 32.69 | AX64: =AU64*AV64 -> 342.6164117 | AY64: 98 | AZ64: 12 | BA64: =IF(AZ64 > 0,AY64/AZ64,0) -> 8.166666667 | BB64: =MIN($F64:AT64) -> 6 | BD64: 12 | BE64: 53 | BF64: ОК
A65: 54 | B65: Дымчишина Александра Юрьевна | C65: 475497099 | D65: Журналистика | E65: =MATCH(C65,Данные!$D:$D,0) -> 70 | F65: 9 | J65: 6 | Q65: 6 | V65: 7 | X65: 6 | Z65: 9 | AB65: 8 | AD65: 7 | AH65: 10 | AL65: 8 | AM65: 9 | AQ65: 10 | AU65: 260.07 | AV65: =IF(AW65 > 0, MAX(AW$12:AW$110) / AW65, 0) -> 1.314469257 | AW65: 32.69 | AX65: =AU65*AV65 -> 341.8540196 | AY65: 95 | AZ65: 12 | BA65: =IF(AZ65 > 0,AY65/AZ65,0) -> 7.916666667 | BB65: =MIN($F65:AT65) -> 6 | BD65: 12 | BE65: 54 | BF65: ОК
A66: 55 | B66: Малышева Ирина Александровна | C66: 475563206 | D66: Журналистика | E66: =MATCH(C66,Данные!$D:$D,0) -> 62 | F66: 9 | J66: 8 | Q66: 9 | V66: 8 | X66: 8 | Z66: 7 | AB66: 6 | AC66: 8 | AD66: 9 | AH66: 10 | AM66: 8 | AQ66: 10 | AU66: 258.72 | AV66: =IF(AW66 > 0, MAX(AW$12:AW$110) / AW66, 0) -> 1.314469257 | AW66: 32.69 | AX66: =AU66*AV66 -> 340.0794861 | AY66: 100 | AZ66: 12 | BA66: =IF(AZ66 > 0,AY66/AZ66,0) -> 8.333333333 | BB66: =MIN($F66:AT66) -> 6 | BD66: 12 | BE66: 55 | BF66: ОК
A67: 56 | B67: Атасунцев Александр Григорьевич | C67: 481501546 | D67: Журналистика | E67: =MATCH(C67,Данные!$D:$D,0) -> 96 | F67: 8 | J67: 9 | S67: 7 | V67: 5 | X67: 9 | Z67: 9 | AB67: 6 | AC67: 7 | AD67: 6 | AH67: 8 | AJ67: 7 | AM67: 10 | AQ67: 10 | AU67: 257.39 | AV67: =IF(AW67 > 0, MAX(AW$12:AW$110) / AW67, 0) -> 1.314469257 | AW67: 32.69 | AX67: =AU67*AV67 -> 338.331242 | AY67: 101 | AZ67: 13 | BA67: =IF(AZ67 > 0,AY67/AZ67,0) -> 7.769230769 | BB67: =MIN($F67:AT67) -> 5 | BD67: 13 | BE67: 56 | BF67: ОК
A68: 57 | B68: Голубева Анастасия Павловна | C68: 475496297 | D68: Журналистика | E68: =MATCH(C68,Данные!$D:$D,0) -> 68 | F68: 9 | J68: 7 | Q68: 6 | V68: 5 | X68: 8 | Z68: 6 | AB68: 9 | AD68: 6 | AH68: 9 | AM68: 9 | AN68: 8 | AQ68: 10 | AU68: 254.77 | AV68: =IF(AW68 > 0, MAX(AW$12:AW$110) / AW68, 0) -> 1.314469257 | AW68: 32.69 | AX68: =AU68*AV68 -> 334.8873325 | AY68: 92 | AZ68: 12 | BA68: =IF(AZ68 > 0,AY68/AZ68,0) -> 7.666666667 | BB68: =MIN($F68:AT68) -> 5 | BD68: 12 | BE68: 57 | BF68: ОК
A69: 58 | B69: Афян Мария Геннадьевна | C69: 475562419 | D69: Журналистика | E69: =MATCH(C69,Данные!$D:$D,0) -> 58 | F69: 8 | J69: 7 | R69: н/я | V69: 8 | X69: 5 | Y69: 5 * | Z69: 7 | AB69: 7 | AE69: 9 | AH69: 9 | AL69: 10 | AM69: 8 | AQ69: 10 | AU69: 278 | AV69: =IF(AW69 > 0, MAX(AW$12:AW$110) / AW69, 0) -> 1.203978706 | AW69: 35.69 | AX69: =AU69*AV69 -> 334.7060801 | AY69: 93 | AZ69: 12 | BA69: =IF(AZ69 > 0,AY69/AZ69,0) -> 7.75 | BB69: =MIN($F69:AT69) -> 5 | BD69: 12 | BE69: 58 | BF69: ОК
A70: 59 | B70: Макарова Юлия Валерьевна | C70: 475565231 | D70: Журналистика | E70: =MATCH(C70,Данные!$D:$D,0) -> 30 | F70: 8 | J70: 7 | V70: 6 | X70: 7 | Z70: 10 | AB70: 6 | AD70: 7 | AF70: 9 | AH70: 8 | AJ70: 9 | AM70: 9 | AQ70: 10 | AU70: 253.8 | AV70: =IF(AW70 > 0, MAX(AW$12:AW$110) / AW70, 0) -> 1.314469257 | AW70: 32.69 | AX70: =AU70*AV70 -> 333.6122973 | AY70: 96 | AZ70: 12 | BA70: =IF(AZ70 > 0,AY70/AZ70,0) -> 8 | BB70: =MIN($F70:AT70) -> 6 | BD70: 12 | BE70: 59 | BF70: ОК
A71: 60 | B71: Осипова Светлана Витальевна | C71: 475563521 | D71: Журналистика | E71: =MATCH(C71,Данные!$D:$D,0) -> 23 | F71: 9 | J71: 7 | S71: 10 | V71: 7 | X71: 4 | Z71: 7 | AB71: 10 | AC71: 8 | AD71: 8 | AH71: 8 | AM71: 8 | AQ71: 10 | AU71: 250.65 | AV71: =IF(AW71 > 0, MAX(AW$12:AW$110) / AW71, 0) -> 1.314469257 | AW71: 32.69 | AX71: =AU71*AV71 -> 329.4717192 | AY71: 96 | AZ71: 12 | BA71: =IF(AZ71 > 0,AY71/AZ71,0) -> 8 | BB71: =MIN($F71:AT71) -> 4 | BD71: 12 | BE71: 60 | BF71: ОК
A72: 61 | B72: Ероносов Александр Эдуардович | C72: 481496795 | D72: Журналистика | E72: =MATCH(C72,Данные!$D:$D,0) -> 81 | F72: 9 | J72: 6 | V72: 7 | X72: 4 | Z72: 7 | AB72: 9 | AD72: 7 | AF72: 10 | AH72: 8 | AJ72: 8 | AM72: 9 | AQ72: 10 | AU72: 250.43 | AV72: =IF(AW72 > 0, MAX(AW$12:AW$110) / AW72, 0) -> 1.314469257 | AW72: 32.69 | AX72: =AU72*AV72 -> 329.1825359 | AY72: 94 | AZ72: 12 | BA72: =IF(AZ72 > 0,AY72/AZ72,0) -> 7.833333333 | BB72: =MIN($F72:AT72) -> 4 | BD72: 12 | BE72: 61 | BF72: ОК
A73: 62 | B73: Бурцева Анастасия Юрьевна | C73: 475560670 | D73: Журналистика | E73: =MATCH(C73,Данные!$D:$D,0) -> 51 | F73: 8 | J73: 7 | Q73: 5 | V73: 7 | X73: 5 | Z73: 6 | AB73: 9 | AD73: 7 | AH73: 9 | AL73: 7 | AM73: 10 | AQ73: 10 | AU73: 250.17 | AV73: =IF(AW73 > 0, MAX(AW$12:AW$110) / AW73, 0) -> 1.314469257 | AW73: 32.69 | AX73: =AU73*AV73 -> 328.8407739 | AY73: 90 | AZ73: 12 | BA73: =IF(AZ73 > 0,AY73/AZ73,0) -> 7.5 | BB73: =MIN($F73:AT73) -> 5 | BD73: 12 | BE73: 62 | BF73: ОК
A74: 63 | B74: Аветисян Виолетта Александровна | C74: 475557752 | D74: Журналистика | E74: =MATCH(C74,Данные!$D:$D,0) -> 43 | F74: 8 | J74: 7 | S74: 6 | V74: 8 | X74: 5 | Z74: 6 | AB74: 9 | AD74: 7 | AF74: 9 | AH74: 8 | AJ74: 7 | AM74: 9 | AQ74: 10 | AU74: 250.06 | AV74: =IF(AW74 > 0, MAX(AW$12:AW$110) / AW74, 0) -> 1.314469257 | AW74: 32.69 | AX74: =AU74*AV74 -> 328.6961823 | AY74: 99 | AZ74: 13 | BA74: =IF(AZ74 > 0,AY74/AZ74,0) -> 7.615384615 | BB74: =MIN($F74:AT74) -> 5 | BD74: 13 | BE74: 63 | BF74: ОК
A75: 64 | B75: Животнёв Владислав Николаевич | C75: 475564933 | D75: Журналистика | E75: =MATCH(C75,Данные!$D:$D,0) -> 28 | F75: 8 | J75: 9 | V75: 6 | X75: 6 | Z75: 7 | AB75: 9 | AD75: 5 | AF75: 8 | AH75: 9 | AM75: 8 | AQ75: 10 | AU75: 249.26 | AV75: =IF(AW75 > 0, MAX(AW$12:AW$110) / AW75, 0) -> 1.314469257 | AW75: 32.69 | AX75: =AU75*AV75 -> 327.6446069 | AY75: 85 | AZ75: 11 | BA75: =IF(AZ75 > 0,AY75/AZ75,0) -> 7.727272727 | BB75: =MIN($F75:AT75) -> 5 | BD75: 11 | BE75: 64 | BF75: ОК
A76: 65 | B76: Маркова Кристина Алексеевна | C76: 475503059 | D76: Журналистика | E76: =MATCH(C76,Данные!$D:$D,0) -> 21 | F76: 7 | J76: 6 | S76: 5 | V76: 6 | X76: 5 | Z76: 8 | AB76: 9 | AC76: 7 | AD76: 7 | AH76: 8 | AM76: 10 | AQ76: 10 | AU76: 248.02 | AV76: =IF(AW76 > 0, MAX(AW$12:AW$110) / AW76, 0) -> 1.314469257 | AW76: 32.69 | AX76: =AU76*AV76 -> 326.014665 | AY76: 88 | AZ76: 12 | BA76: =IF(AZ76 > 0,AY76/AZ76,0) -> 7.333333333 | BB76: =MIN($F76:AT76) -> 5 | BD76: 12 | BE76: 65 | BF76: ОК
A77: 66 | B77: Вишнякова Екатерина Владимировна | C77: 475561061 | D77: Журналистика | E77: =MATCH(C77,Данные!$D:$D,0) -> 53 | F77: 0 | J77: 9 | S77: 5 | V77: 7 | X77: 8 | Z77: 7 | AB77: 6 | AD77: 9 | AF77: 10 | AH77: 8 | AM77: 9 | AQ77: 10 | AU77: 247.55 | AV77: =IF(AW77 > 0, MAX(AW$12:AW$110) / AW77, 0) -> 1.314469257 | AW77: 32.69 | AX77: =AU77*AV77 -> 325.3968645 | AY77: 88 | AZ77: 12 | BA77: =IF(AZ77 > 0,AY77/AZ77,0) -> 7.333333333 | BB77: =MIN($F77:AT77) -> 0 | BC77: Да | BD77: 11 | BE77: 66 | BF77: ОК
A78: 67 | B78: Нарушевич Анастасия Александровна | C78: 475565551 | D78: Журналистика | E78: =MATCH(C78,Данные!$D:$D,0) -> 32 | F78: 7 | J78: 7 | V78: 5 | X78: 8 | Z78: 10 | AB78: 6 | AD78: 5 | AH78: 8 | AJ78: 6 | AL78: 7 | AM78: 10 | AQ78: 10 | AU78: 246.59 | AV78: =IF(AW78 > 0, MAX(AW$12:AW$110) / AW78, 0) -> 1.314469257 | AW78: 32.69 | AX78: =AU78*AV78 -> 324.134974 | AY78: 89 | AZ78: 12 | BA78: =IF(AZ78 > 0,AY78/AZ78,0) -> 7.416666667 | BB78: =MIN($F78:AT78) -> 5 | BD78: 12 | BE78: 67 | BF78: ОК
A79: 68 | B79: Стешенкова Александра Евгеньевна | C79: 475565869 | D79: Журналистика | E79: =MATCH(C79,Данные!$D:$D,0) -> 33 | F79: 7 | J79: 6 | V79: 5 | X79: 7 | Z79: 9 | AB79: 8 | AD79: 7 | AH79: 8 | AL79: 8 | AM79: 8 | AQ79: 10 | AU79: 245.71 | AV79: =IF(AW79 > 0, MAX(AW$12:AW$110) / AW79, 0) -> 1.314469257 | AW79: 32.69 | AX79: =AU79*AV79 -> 322.9782411 | AY79: 83 | AZ79: 11 | BA79: =IF(AZ79 > 0,AY79/AZ79,0) -> 7.545454545 | BB79: =MIN($F79:AT79) -> 5 | BD79: 11 | BE79: 68 | BF79: ОК
A80: 69 | B80: Басиладзе Мариами Рамазиевна | C80: 475564485 | D80: Журналистика | E80: =MATCH(C80,Данные!$D:$D,0) -> 25 | F80: 8 | J80: 6 | T80: 5 | V80: 6 | X80: 7 | Y80: 7 * | Z80: 7 | AB80: 4 | AC80: 6 | AE80: 10 | AH80: 9 | AK80: 6 | AM80: 10 | AQ80: 10 | AU80: 267.42 | AV80: =IF(AW80 > 0, MAX(AW$12:AW$110) / AW80, 0) -> 1.203978706 | AW80: 35.69 | AX80: =AU80*AV80 -> 321.9679854 | AY80: 101 | AZ80: 14 | BA80: =IF(AZ80 > 0,AY80/AZ80,0) -> 7.214285714 | BB80: =MIN($F80:AT80) -> 4 | BD80: 14 | BE80: 69 | BF80: ОК
A81: 70 | B81: Чехонадских Дарья Александровна | C81: 475563678 | D81: Журналистика | E81: =MATCH(C81,Данные!$D:$D,0) -> 24 | F81: 10 | J81: 8 | O81: 9 | Q81: 8 | V81: 6 | X81: 4 | Z81: 8 | AB81: 9 | AC81: 8 | AD81: 4 | AH81: 8 | AM81: 8 | AQ81: 10 | AU81: 240.62 | AV81: =IF(AW81 > 0, MAX(AW$12:AW$110) / AW81, 0) -> 1.314469257 | AW81: 32.69 | AX81: =AU81*AV81 -> 316.2875925 | AY81: 100 | AZ81: 13 | BA81: =IF(AZ81 > 0,AY81/AZ81,0) -> 7.692307692 | BB81: =MIN($F81:AT81) -> 4 | BD81: 13 | BE81: 70 | BF81: ОК
A82: 71 | B82: Королева Виолетта Николаевна | C82: 481499520 | D82: Журналистика | E82: =MATCH(C82,Данные!$D:$D,0) -> 88 | F82: 9 | J82: 7 | O82: 7 | S82: 9 | V82: 7 | X82: 6 | Z82: 7 | AB82: 7 | AD82: 6 | AF82: 9 | AH82: 8 | AM82: 8 | AQ82: 10 | AU82: 239.85 | AV82: =IF(AW82 > 0, MAX(AW$12:AW$110) / AW82, 0) -> 1.314469257 | AW82: 32.69 | AX82: =AU82*AV82 -> 315.2754512 | AY82: 100 | AZ82: 13 | BA82: =IF(AZ82 > 0,AY82/AZ82,0) -> 7.692307692 | BB82: =MIN($F82:AT82) -> 6 | BD82: 13 | BE82: 71 | BF82: ОК
A83: 72 | B83: Селиванова Ксения Александровна | C83: 475503320 | D83: Журналистика | E83: =MATCH(C83,Данные!$D:$D,0) -> 34 | F83: 8 | J83: 6 | V83: 5 | X83: 8 | Z83: 8 | AB83: 7 | AD83: 6 | AH83: 8 | AL83: 8 | AM83: 8 | AQ83: 10 | AU83: 239.51 | AV83: =IF(AW83 > 0, MAX(AW$12:AW$110) / AW83, 0) -> 1.314469257 | AW83: 32.69 | AX83: =AU83*AV83 -> 314.8285317 | AY83: 82 | AZ83: 11 | BA83: =IF(AZ83 > 0,AY83/AZ83,0) -> 7.454545455 | BB83: =MIN($F83:AT83) -> 5 | BD83: 11 | BE83: 72 | BF83: ОК
A84: 73 | B84: Устюжанинова Анна Александровна | C84: 475499184 | D84: Журналистика | E84: =MATCH(C84,Данные!$D:$D,0) -> 67 | F84: 8 | J84: 7 | V84: 5 | X84: 6 | Z84: 7 | AB84: 9 | AD84: 6 | AF84: 7 | AH84: 8 | AM84: 8 | AQ84: 10 | AU84: 238.59 | AV84: =IF(AW84 > 0, MAX(AW$12:AW$110) / AW84, 0) -> 1.314469257 | AW84: 32.69 | AX84: =AU84*AV84 -> 313.6192199 | AY84: 81 | AZ84: 11 | BA84: =IF(AZ84 > 0,AY84/AZ84,0) -> 7.363636364 | BB84: =MIN($F84:AT84) -> 5 | BD84: 11 | BE84: 73 | BF84: ОК
A85: 74 | B85: Винокур Дана Витальевна | C85: 475560846 | D85: Журналистика | E85: =MATCH(C85,Данные!$D:$D,0) -> 52 | F85: 9 | J85: 6 | S85: 7 | V85: 5 | X85: 6 | Z85: 7 | AB85: 7 | AD85: 7 | AH85: 8 | AL85: 8 | AM85: 9 | AQ85: 10 | AU85: 238.29 | AV85: =IF(AW85 > 0, MAX(AW$12:AW$110) / AW85, 0) -> 1.314469257 | AW85: 32.69 | AX85: =AU85*AV85 -> 313.2248792 | AY85: 89 | AZ85: 12 | BA85: =IF(AZ85 > 0,AY85/AZ85,0) -> 7.416666667 | BB85: =MIN($F85:AT85) -> 5 | BD85: 12 | BE85: 74 | BF85: ОК
A86: 75 | B86: Швецова Екатерина Константиновна | C86: 481505154 | D86: Журналистика | E86: =MATCH(C86,Данные!$D:$D,0) -> 48 | F86: 8 | J86: 7 | V86: 6 | X86: 5 | Z86: 8 | AB86: 7 | AD86: 7 | AF86: 6 | AH86: 9 | AJ86: 8 | AM86: 9 | AQ86: 10 | AU86: 238.16 | AV86: =IF(AW86 > 0, MAX(AW$12:AW$110) / AW86, 0) -> 1.314469257 | AW86: 32.69 | AX86: =AU86*AV86 -> 313.0539982 | AY86: 90 | AZ86: 12 | BA86: =IF(AZ86 > 0,AY86/AZ86,0) -> 7.5 | BB86: =MIN($F86:AT86) -> 5 | BD86: 12 | BE86: 75 | BF86: ОК
A87: 76 | B87: Шевелёва Кристина Дмитриевна | C87: 475561559 | D87: Журналистика | E87: =MATCH(C87,Данные!$D:$D,0) -> 56 | F87: 8 | J87: 8 | V87: 6 | X87: 6 | Y87: 5 * | Z87: 6 | AB87: 6 | AE87: 7 | AF87: 9 | AH87: 8 | AK87: 6 | AM87: 9 | AQ87: 10 | AU87: 259.32 | AV87: =IF(AW87 > 0, MAX(AW$12:AW$110) / AW87, 0) -> 1.203978706 | AW87: 35.69 | AX87: =AU87*AV87 -> 312.2157579 | AY87: 94 | AZ87: 13 | BA87: =IF(AZ87 > 0,AY87/AZ87,0) -> 7.230769231 | BB87: =MIN($F87:AT87) -> 6 | BD87: 13 | BE87: 76 | BF87: ОК
A88: 77 | B88: Петренко Валерия Денисовна | C88: 481504754 | D88: Журналистика | E88: =MATCH(C88,Данные!$D:$D,0) -> 41 | F88: 8 | J88: 7 | V88: 5 | X88: 7 | Z88: 7 | AB88: 7 | AD88: 5 | AF88: 8 | AH88: 8 | AM88: 9 | AQ88: 10 | AU88: 236.97 | AV88: =IF(AW88 > 0, MAX(AW$12:AW$110) / AW88, 0) -> 1.314469257 | AW88: 32.69 | AX88: =AU88*AV88 -> 311.4897797 | AY88: 81 | AZ88: 11 | BA88: =IF(AZ88 > 0,AY88/AZ88,0) -> 7.363636364 | BB88: =MIN($F88:AT88) -> 5 | BD88: 11 | BE88: 77 | BF88: ОК
A89: 78 | B89: Павлова Алиса Павловна | C89: 481500392 | D89: Журналистика | E89: =MATCH(C89,Данные!$D:$D,0) -> 92 | F89: 8 | J89: 7 | V89: 6 | X89: 6 | Z89: 7 | AB89: 8 | AC89: 8 | AD89: 5 | AH89: 8 | AJ89: 8 | AM89: 8 | AQ89: 10 | AU89: 235.26 | AV89: =IF(AW89 > 0, MAX(AW$12:AW$110) / AW89, 0) -> 1.314469257 | AW89: 32.69 | AX89: =AU89*AV89 -> 309.2420373 | AY89: 89 | AZ89: 12 | BA89: =IF(AZ89 > 0,AY89/AZ89,0) -> 7.416666667 | BB89: =MIN($F89:AT89) -> 5 | BD89: 12 | BE89: 78 | BF89: ОК
A90: 79 | B90: Бидзионашвили Кетеван - | C90: 475560308 | D90: Журналистика | E90: =MATCH(C90,Данные!$D:$D,0) -> 49 | F90: 8 | J90: 7 | V90: 6 | X90: 6 | Y90: 7 * | Z90: 8 | AB90: 7 | AE90: 7 | AH90: 8 | AK90: 6 | AL90: 7 | AM90: 8 | AQ90: 10 | AU90: 306.98 | AV90: =IF(AW90 > 0, MAX(AW$12:AW$110) / AW90, 0) -> 1.006558913 | AW90: 42.69 | AX90: =AU90*AV90 -> 308.9934551 | AY90: 95 | AZ90: 13 | BA90: =IF(AZ90 > 0,AY90/AZ90,0) -> 7.307692308 | BB90: =MIN($F90:AT90) -> 6 | BD90: 13 | BE90: 79 | BF90: ОК
A91: 80 | B91: Люля Арина Артемовна | C91: 475563046 | D91: Журналистика | E91: =MATCH(C91,Данные!$D:$D,0) -> 61 | F91: 9 | J91: 6 | V91: 7 | X91: 4 | Y91: 5 * | Z91: 6 | AB91: 10 | AE91: 6 | AH91: 8 | AK91: 6 | AL91: 7 | AM91: 8 | AQ91: 10 | AU91: 252.93 | AV91: =IF(AW91 > 0, MAX(AW$12:AW$110) / AW91, 0) -> 1.203978706 | AW91: 35.69 | AX91: =AU91*AV91 -> 304.522334 | AY91: 92 | AZ91: 13 | BA91: =IF(AZ91 > 0,AY91/AZ91,0) -> 7.076923077 | BB91: =MIN($F91:AT91) -> 4 | BD91: 13 | BE91: 80 | BF91: ОК
A92: 81 | B92: Масалова Анна Владиславовна | C92: 752764364 | D92: Журналистика | E92: =MATCH(C92,Данные!$D:$D,0) -> 3 | F92: 7 | J92: 8 | S92: 9 | V92: 4 | X92: 5 | AA92: 6 | AB92: 7 | AE92: 7 | AH92: 8 | AK92: 8 | AL92: 8 | AM92: 8 | AN92: 8 | AQ92: 10 | AU92: 273.54 | AV92: =IF(AW92 > 0, MAX(AW$12:AW$110) / AW92, 0) -> 1.101794872 | AW92: 39 | AX92: =AU92*AV92 -> 301.3849692 | AY92: 103 | AZ92: 14 | BA92: =IF(AZ92 > 0,AY92/AZ92,0) -> 7.357142857 | BB92: =MIN($F92:AT92) -> 4 | BD92: 14 | BE92: 81 | BF92: ОК
A93: 82 | B93: Джгаркава Нино Звиадиевна | C93: 475496974 | D93: Журналистика | E93: =MATCH(C93,Данные!$D:$D,0) -> 69 | F93: 7 | J93: 7 | V93: 6 | X93: 4 | Z93: 6 | AB93: 8 | AD93: 6 | AH93: 8 | AL93: 7 | AM93: 9 | AQ93: 10 | AU93: 227.2 | AV93: =IF(AW93 > 0, MAX(AW$12:AW$110) / AW93, 0) -> 1.314469257 | AW93: 32.69 | AX93: =AU93*AV93 -> 298.6474151 | AY93: 78 | AZ93: 11 | BA93: =IF(AZ93 > 0,AY93/AZ93,0) -> 7.090909091 | BB93: =MIN($F93:AT93) -> 4 | BD93: 11 | BE93: 82 | BF93: ОК
A94: 83 | B94: Еремина Анастасия Алексеевна | C94: 475500939 | D94: Журналистика | E94: =MATCH(C94,Данные!$D:$D,0) -> 10 | F94: 7 | J94: 7 | V94: 5 | X94: 4 | Z94: 6 | AB94: 9 | AD94: 6 | AH94: 9 | AJ94: 9 | AL94: 6 | AM94: 8 | AQ94: 10 | AU94: 225.75 | AV94: =IF(AW94 > 0, MAX(AW$12:AW$110) / AW94, 0) -> 1.314469257 | AW94: 32.69 | AX94: =AU94*AV94 -> 296.7414347 | AY94: 86 | AZ94: 12 | BA94: =IF(AZ94 > 0,AY94/AZ94,0) -> 7.166666667 | BB94: =MIN($F94:AT94) -> 4 | BD94: 12 | BE94: 83 | BF94: ОК
A95: 84 | B95: Халилова Арзу Идаятовна | C95: 615125946 | D95: Журналистика | E95: =MATCH(C95,Данные!$D:$D,0) -> 4 | F95: 9 | J95: 7 | Q95: 8 | U95: 7 | V95: 7 | X95: 6 | Z95: 6 | AB95: 8 | AE95: 6 | AF95: 8 | AI95: 4 | AM95: 9 | AQ95: 10 | AU95: 252.91 | AV95: =IF(AW95 > 0, MAX(AW$12:AW$110) / AW95, 0) -> 1.171163805 | AW95: 36.69 | AX95: =AU95*AV95 -> 296.1990379 | AY95: 95 | AZ95: 13 | BA95: =IF(AZ95 > 0,AY95/AZ95,0) -> 7.307692308 | BB95: =MIN($F95:AT95) -> 4 | BD95: 13 | BE95: 84 | BF95: ОК
A96: 85 | B96: Буримова Александра Сергеевна | C96: 475560500 | D96: Журналистика | E96: =MATCH(C96,Данные!$D:$D,0) -> 50 | F96: 8 | J96: 7 | S96: 4 | V96: 4 | X96: 5 | Z96: 8 | AB96: 6 | AC96: 8 | AD96: 4 | AH96: 8 | AM96: 9 | AQ96: 10 | AU96: 223.82 | AV96: =IF(AW96 > 0, MAX(AW$12:AW$110) / AW96, 0) -> 1.314469257 | AW96: 32.69 | AX96: =AU96*AV96 -> 294.204509 | AY96: 81 | AZ96: 12 | BA96: =IF(AZ96 > 0,AY96/AZ96,0) -> 6.75 | BB96: =MIN($F96:AT96) -> 4 | BD96: 12 | BE96: 85 | BF96: ОК
A97: 86 | B97: Волчек Никита Алексеевич | C97: 475561255 | D97: Журналистика | E97: =MATCH(C97,Данные!$D:$D,0) -> 54 | F97: 8 | J97: 9 | V97: 8 | X97: 5 | Z97: 8 | AB97: 0 | AE97: 6 | AF97: 9 | AH97: 8 | AK97: 7 | AL97: 8 | AM97: 10 | AQ97: 10 | AU97: 238.28 | AV97: =IF(AW97 > 0, MAX(AW$12:AW$110) / AW97, 0) -> 1.203978706 | AW97: 35.69 | AX97: =AU97*AV97 -> 286.884046 | AY97: 96 | AZ97: 13 | BA97: =IF(AZ97 > 0,AY97/AZ97,0) -> 7.384615385 | BB97: =MIN($F97:AT97) -> 0 | BC97: Да | BD97: 12 | BE97: 86 | BF97: ОК
A98: 87 | B98: Немкова Екатерина Дмитриевна | C98: 580462633 | D98: Журналистика | E98: =MATCH(C98,Данные!$D:$D,0) -> 101 | H98: 8 | J98: 8 | V98: 8 | X98: 4 | Z98: 6 | AB98: 5 | AE98: 6 | AF98: 9 | AI98: 4 | AM98: 9 | AQ98: 10 | AT98: 9 | AU98: 274.6 | AV98: =IF(AW98 > 0, MAX(AW$12:AW$110) / AW98, 0) -> 1.041192149 | AW98: 41.27 | AX98: =AU98*AV98 -> 285.9113642 | AY98: 86 | AZ98: 12 | BA98: =IF(AZ98 > 0,AY98/AZ98,0) -> 7.166666667 | BB98: =MIN($F98:AT98) -> 4 | BD98: 12 | BE98: 87 | BF98: ОК
A99: 88 | B99: Досий Зоряна Владимировна | C99: 475564787 | D99: Журналистика | E99: =MATCH(C99,Данные!$D:$D,0) -> 27 | F99: 7 | J99: 5 | T99: 6 | V99: 4 | X99: 4 | Z99: 7 | AB99: 7 | AC99: 6 | AE99: 6 | AH99: 8 | AM99: 9 | AQ99: 10 | AU99: 231.58 | AV99: =IF(AW99 > 0, MAX(AW$12:AW$110) / AW99, 0) -> 1.203978706 | AW99: 35.69 | AX99: =AU99*AV99 -> 278.8173886 | AY99: 79 | AZ99: 12 | BA99: =IF(AZ99 > 0,AY99/AZ99,0) -> 6.583333333 | BB99: =MIN($F99:AT99) -> 4 | BD99: 12 | BE99: 88 | BF99: ОК
A100: 89 | B100: Алешкина Александрина Александровна | C100: 475564380 | D100: Журналистика | E100: =MATCH(C100,Данные!$D:$D,0) -> 100 | G100: н/я (ув) | J100: 6 | V100: 5 | X100: 4 | Z100: 8 | AB100: 9 | AC100: 6 | AE100: 5 | AH100: 8 | AM100: 10 | AQ100: 10 | AU100: 235.31 | AV100: =IF(AW100 > 0, MAX(AW$12:AW$110) / AW100, 0) -> 1.168615719 | AW100: 36.77 | AX100: =AU100*AV100 -> 274.9869649 | AY100: 71 | AZ100: 10 | BA100: =IF(AZ100 > 0,AY100/AZ100,0) -> 7.1 | BB100: =MIN($F100:AT100) -> 4 | BD100: 10 | BE100: 89 | BF100: ОК
A101: 90 | B101: Маммаева Фарида Сулеймановна | C101: 475558344 | D101: Журналистика | E101: =MATCH(C101,Данные!$D:$D,0) -> 45 | F101: 7 | J101: 5 | S101: н/я | V101: 7 | X101: 2 | Z101: 6 | AB101: 7 | AD101: 4 | AF101: 7 | AH101: 8 | AM101: 9 | AQ101: 10 | AU101: 204.67 | AV101: =IF(AW101 > 0, MAX(AW$12:AW$110) / AW101, 0) -> 1.314469257 | AW101: 32.69 | AX101: =AU101*AV101 -> 269.0324228 | AY101: 72 | AZ101: 11 | BA101: =IF(AZ101 > 0,AY101/AZ101,0) -> 6.545454545 | BB101: =MIN($F101:AT101) -> 2 | BC101: Да | BD101: 10 | BE101: 90 | BF101: ОК
A102: 91 | B102: Гранкова Ксения Сергеевна | C102: 475561427 | D102: Журналистика | E102: =MATCH(C102,Данные!$D:$D,0) -> 55 | F102: 8 | J102: 6 | V102: 4 | X102: 5 | Y102: 3 * | Z102: 5 | AB102: 6 | AC102: 10 | AE102: 4 | AH102: 6 | AM102: 8 | AQ102: 10 | AU102: 216.88 | AV102: =IF(AW102 > 0, MAX(AW$12:AW$110) / AW102, 0) -> 1.203978706 | AW102: 35.69 | AX102: =AU102*AV102 -> 261.1189017 | AY102: 75 | AZ102: 12 | BA102: =IF(AZ102 > 0,AY102/AZ102,0) -> 6.25 | BB102: =MIN($F102:AT102) -> 4 | BC102: Да | BD102: 11 | BE102: 91 | BF102: ОК
A103: 92 | B103: Немченко Илья Михайлович | C103: 481500235 | D103: Журналистика | E103: =MATCH(C103,Данные!$D:$D,0) -> 91 | F103: 8 | J103: 6 | Q103: 5 | V103: 7 | X103: 4 | Z103: 7 | AB103: 4 | AD103: 5 | AF103: 5 | AH103: 8 | AJ103: 5 | AM103: 8 | AQ103: 10 | AU103: 197.73 | AV103: =IF(AW103 > 0, MAX(AW$12:AW$110) / AW103, 0) -> 1.314469257 | AW103: 32.69 | AX103: =AU103*AV103 -> 259.9100061 | AY103: 82 | AZ103: 13 | BA103: =IF(AZ103 > 0,AY103/AZ103,0) -> 6.307692308 | BB103: =MIN($F103:AT103) -> 4 | BD103: 13 | BE103: 92 | BF103: ОК
A104: 93 | B104: Зубкевич Андрей Вадимович | C104: 481496924 | D104: Журналистика | E104: =MATCH(C104,Данные!$D:$D,0) -> 82 | F104: 8 | J104: 6 | V104: 5 | X104: 4 | Z104: 6 | AB104: 6 | AD104: 5 | AH104: 5 | AM104: 9 | AN104: 5 | AQ104: 10 | AU104: 196.45 | AV104: =IF(AW104 > 0, MAX(AW$12:AW$110) / AW104, 0) -> 1.314469257 | AW104: 32.69 | AX104: =AU104*AV104 -> 258.2274855 | AY104: 69 | AZ104: 11 | BA104: =IF(AZ104 > 0,AY104/AZ104,0) -> 6.272727273 | BB104: =MIN($F104:AT104) -> 4 | BD104: 11 | BE104: 93 | BF104: ОК
A105: 94 | B105: Кистерев Алексей Валерьевич | C105: 475562897 | D105: Журналистика | E105: =MATCH(C105,Данные!$D:$D,0) -> 60 | F105: 8 | J105: 4 | R105: н/я (ув) | V105: 7 | X105: 3 | Y105: 3 * | Z105: 6 | AB105: 7 | AC105: 8 | AE105: 6 | AH105: 8 | AM105: 5 | AQ105: 10 | AU105: 236.07 | AV105: =IF(AW105 > 0, MAX(AW$12:AW$110) / AW105, 0) -> 1.006558913 | AW105: 42.69 | AX105: =AU105*AV105 -> 237.6183626 | AY105: 75 | AZ105: 12 | BA105: =IF(AZ105 > 0,AY105/AZ105,0) -> 6.25 | BB105: =MIN($F105:AT105) -> 3 | BC105: Да | BD105: 10 | BE105: 94 | BF105: ОК
A106: 95 | B106: Глазунов Никита Сергеевич | C106: 481498934 | D106: Журналистика | E106: =MATCH(C106,Данные!$D:$D,0) -> 86 | F106: 8 | J106: 6 | V106: 6 | X106: 6 | Y106: 4 | Z106: 6 | AB106: 6 | AE106: 6 | AH106: 5 | AL106: н/я | AM106: 8 | AS106: 10 | AU106: 237.34 | AV106: =IF(AW106 > 0, MAX(AW$12:AW$110) / AW106, 0) -> 1 | AW106: 42.97 | AX106: =AU106*AV106 -> 237.34 | AY106: 71 | AZ106: 11 | BA106: =IF(AZ106 > 0,AY106/AZ106,0) -> 6.454545455 | BB106: =MIN($F106:AT106) -> 4 | BC106: Да | BD106: 11 | BE106: 95 | BF106: ОК
A107: 96 | B107: Белобеева Ангелина Анатольевна | C107: 475557886 | D107: Журналистика | E107: =MATCH(C107,Данные!$D:$D,0) -> 44 | F107: 7 | J107: 5 | T107: 5 | V107: 6 | X107: 4 | Y107: 6 * | Z107: 6 | AB107: 0 | AE107: 5 | AH107: 9 | AL107: 5 | AM107: 9 | AQ107: 10 | AU107: 232.2 | AV107: =IF(AW107 > 0, MAX(AW$12:AW$110) / AW107, 0) -> 1.006558913 | AW107: 42.69 | AX107: =AU107*AV107 -> 233.7229796 | AY107: 77 | AZ107: 13 | BA107: =IF(AZ107 > 0,AY107/AZ107,0) -> 5.923076923 | BB107: =MIN($F107:AT107) -> 0 | BC107: Да | BD107: 12 | BE107: 96 | BF107: ОК
A108: 97 | B108: Лымарева Мария Андреевна | C108: 481501825 | D108: Журналистика | E108: =MATCH(C108,Данные!$D:$D,0) -> 97 | F108: 8 | J108: 4 | V108: 7 | X108: 5 | Z108: 7 | AB108: 0 | AC108: 8 | AD108: 6 | AH108: 7 | AM108: 5 | AQ108: 10 | AU108: 169.99 | AV108: =IF(AW108 > 0, MAX(AW$12:AW$110) / AW108, 0) -> 1.314469257 | AW108: 32.69 | AX108: =AU108*AV108 -> 223.4466289 | AY108: 67 | AZ108: 11 | BA108: =IF(AZ108 > 0,AY108/AZ108,0) -> 6.090909091 | BB108: =MIN($F108:AT108) -> 0 | BC108: Да | BD108: 10 | BE108: 97 | BF108: ОК
A109: 98 | B109: Тесфайе Анна-Мария Синтайе | C109: 796834861 | D109: Журналистика | E109: =MATCH(C109,Данные!$D:$D,0) -> 5 | F109: 4 | J109: н/я | N109: 4 | W109: 4 | X109: 3 | AB109: 9 | AE109: н/я (ув) | AL109: 4 | AM109: 8 | AO109: 4 | AP109: 4 | AR109: 10 | AU109: 167.3 | AV109: =IF(AW109 > 0, MAX(AW$12:AW$110) / AW109, 0) -> 1.065724206 | AW109: 40.32 | AX109: =AU109*AV109 -> 178.2956597 | AY109: 54 | AZ109: 10 | BA109: =IF(AZ109 > 0,AY109/AZ109,0) -> 5.4 | BB109: =MIN($F109:AT109) -> 3 | BC109: Да | BD109: 9 | BE109: 98 | BF109: ОК
A110: 99 | B110: Жвик Анастасия Николаевна | C110: 475497229 | D110: Журналистика | E110: =MATCH(C110,Данные!$D:$D,0) -> 71 | F110: н/я (ув) | J110: н/я (ув) | Q110: н/я (ув) | V110: н/я (ув) | X110: н/я (ув) | Z110: н/я (ув) | AB110: 10 | AD110: н/я (ув) | AH110: н/я (ув) | AL110: н/я (ув) | AM110: н/я (ув) | AQ110: 10 | AU110: 50 | AV110: =IF(AW110 > 0, MAX(AW$12:AW$110) / AW110, 0) -> 1.314469257 | AW110: 32.69 | AX110: =AU110*AV110 -> 65.72346283 | AY110: 20 | AZ110: 2 | BA110: =IF(AZ110 > 0,AY110/AZ110,0) -> 10 | BB110: =MIN($F110:AT110) -> 10 | BC110: Да | BD110: 2 | BE110: 99 | BF110: ОК

Sheet Данные (hidden)
A1: ID | B1: Оценка из 10 баллов до пересдач | C1: Группа | D1: Студент | E1: Фамилия | F1: Имя | G1: Отчество | H1: Номер студенческого билета | I1: Строка учебного плана | J1: Текущих кредитов за испытание | K1: Вид испытания | L1: Календарный период по плану | M1: Неявка до пересдач | N1: В текущий рейтинг | O1: Текущих кредитов для студента | P1: Оценка зачет/незачет до пересдач | Q1: Является бюджетным | R1: Учебный план | S1: Вид записи РУП | T1: Вид записи ИУП | U1: Номер Row
A2: 1 | B2: 2 | C2: 3 | D2: 4 | E2: 5 | F2: 6 | G2: 7 | H2: 8 | I2: 9 | J2: 10 | K2: 11 | L2: 12 | M2: 13 | N2: 14 | O2: 15 | P2: 16 | Q2: 17 | R2: 18 | S2: 19 | T2: 20 | U2: 21
A3: 771504574 | B3: 7 | C3: БЖУР131 | D3: 752764364 | E3: Масалова | F3: Анна | G3: Владиславовна | H3: 131232133 | I3: Иностранный язык (английский) | J3: 1.92 | K3: Экзамен | L3: 2014/2015 учебный год 3 модуль | N3: 13.44 | O3: 1.92 | P3: 1 | Q3: 0 | R3: 508316804 | S3: 2098 | T3: ikPlanned | U3: stCommon | V3: Журналистика | W3: =MATCH(D3,Отчет!$C:$C,0) -> 92
A4: 617795941 | B4: 9 | C4: БЖУР131 | D4: 615125946 | E4: Халилова | F4: Арзу | G4: Идаятовна | H4: 131232230 | I4: Иностранный язык (английский) | J4: 1.92 | K4: Экзамен | L4: 2014/2015 учебный год 3 модуль | N4: 17.28 | O4: 1.92 | P4: 1 | Q4: 0 | R4: 508316804 | S4: 2098 | T4: ikPlanned | U4: stCommon | V4: Журналистика | W4: =MATCH(D4,Отчет!$C:$C,0) -> 95
A5: 796966708 | B5: 4 | C5: БЖУР131 | D5: 796834861 | E5: Тесфайе | F5: Анна-Мария | G5: Синтайе | H5: 10701175 | I5: Иностранный язык (английский) | J5: 1.92 | K5: Экзамен | L5: 2014/2015 учебный год 3 модуль | N5: 7.68 | O5: 1.92 | P5: 1 | Q5: 0 | R5: 508316804 | S5: 2098 | T5: ikPlanned | U5: stCommon | V5: Журналистика | W5: =MATCH(D5,Отчет!$C:$C,0) -> 109
A6: 525601346 | B6: 8 | C6: БЖУР132 | D6: 475499320 | E6: Якубович | F6: Анастасия | G6: Александровна | H6: 1301219108 | I6: Иностранный язык (английский) | J6: 1.92 | K6: Экзамен | L6: 2014/2015 учебный год 3 модуль | N6: 15.36 | O6: 1.92 | P6: 1 | Q6: 1 | R6: 508316804 | S6: 2098 | U6: stCommon | V6: Журналистика | W6: =MATCH(D6,Отчет!$C:$C,0) -> 63
A7: 525601830 | B7: 9 | C7: БЖУР133 | D7: 475500480 | E7: Вильшанская | F7: Елена | G7: Андреевна | H7: 1301219017 | I7: Иностранный язык (английский) | J7: 1.92 | K7: Экзамен | L7: 2014/2015 учебный год 3 модуль | N7: 17.28 | O7: 1.92 | P7: 1 | Q7: 1 | R7: 508316804 | S7: 2098 | U7: stCommon | V7: Журналистика | W7: =MATCH(D7,Отчет!$C:$C,0) -> 31
A8: 525601962 | B8: 9 | C8: БЖУР133 | D8: 475500628 | E8: Головина | F8: Евгения | G8: Павловна | H8: 1301219023 | I8: Иностранный язык (английский) | J8: 1.92 | K8: Экзамен | L8: 2014/2015 учебный год 3 модуль | N8: 17.28 | O8: 1.92 | P8: 1 | Q8: 1 | R8: 508316804 | S8: 2098 | U8: stCommon | V8: Журналистика | W8: =MATCH(D8,Отчет!$C:$C,0) -> 41
A9: 525602028 | B9: 9 | C9: БЖУР133 | D9: 475500772 | E9: Дмитриева | F9: Екатерина | G9: Александровна | H9: 1301219030 | I9: Иностранный язык (английский) | J9: 1.92 | K9: Экзамен | L9: 2014/2015 учебный год 3 модуль | N9: 17.28 | O9: 1.92 | P9: 1 | Q9: 1 | R9: 508316804 | S9: 2098 | U9: stCommon | V9: Журналистика | W9: =MATCH(D9,Отчет!$C:$C,0) -> 40
A10: 525602097 | B10: 7 | C10: БЖУР133 | D10: 475500939 | E10: Еремина | F10: Анастасия | G10: Алексеевна | H10: 1301219033 | I10: Иностранный язык (английский) | J10: 1.92 | K10: Экзамен | L10: 2014/2015 учебный год 3 модуль | N10: 13.44 | O10: 1.92 | P10: 1 | Q10: 1 | R10: 508316804 | S10: 2098 | U10: stCommon | V10: Журналистика | W10: =MATCH(D10,Отчет!$C:$C,0) -> 94
A11: 525602259 | B11: 8 | C11: БЖУР133 | D11: 475501085 | E11: Кокшарова | F11: Александра | G11: Игоревна | H11: 1301219041 | I11: Иностранный язык (английский) | J11: 1.92 | K11: Экзамен | L11: 2014/2015 учебный год 3 модуль | N11: 15.36 | O11: 1.92 | P11: 1 | Q11: 1 | R11: 508316804 | S11: 2098 | U11: stCommon | V11: Журналистика | W11: =MATCH(D11,Отчет!$C:$C,0) -> 48
A12: 525602327 | B12: 9 | C12: БЖУР133 | D12: 475501239 | E12: Липчанская | F12: Анастасия | G12: Алексеевна | H12: 1301219049 | I12: Иностранный язык (английский) | J12: 1.92 | K12: Экзамен | L12: 2014/2015 учебный год 3 модуль | N12: 17.28 | O12: 1.92 | P12: 1 | Q12: 1 | R12: 508316804 | S12: 2098 | U12: stCommon | V12: Журналистика | W12: =MATCH(D12,Отчет!$C:$C,0) -> 20
A13: 525602803 | B13: 9 | C13: БЖУР133 | D13: 475501379 | E13: Пятибратова | F13: Екатерина | G13: Васильевна | H13: 1301219077 | I13: Иностранный язык (английский) | J13: 1.92 | K13: Экзамен | L13: 2014/2015 учебный год 3 модуль | N13: 17.28 | O13: 1.92 | P13: 1 | Q13: 1 | R13: 508316804 | S13: 2098 | U13: stCommon | V13: Журналистика | W13: =MATCH(D13,Отчет!$C:$C,0) -> 57
A14: 525602869 | B14: 10 | C14: БЖУР133 | D14: 475501513 | E14: Рублева | F14: Милена | G14: Валерьевна | H14: 1301219080 | I14: Иностранный язык (английский) | J14: 1.92 | K14: Экзамен | L14: 2014/2015 учебный год 3 модуль | N14: 19.2 | O14: 1.92 | P14: 1 | Q14: 1 | R14: 508316804 | S14: 2098 | U14: stCommon | V14: Журналистика | W14: =MATCH(D14,Отчет!$C:$C,0) -> 25
A15: 525603001 | B15: 9 | C15: БЖУР133 | D15: 475501641 | E15: Стрельцова | F15: Наталья | G15: Сергеевна | H15: 1301219089 | I15: Иностранный язык (английский) | J15: 1.92 | K15: Экзамен | L15: 2014/2015 учебный год 3 модуль | N15: 17.28 | O15: 1.92 | P15: 1 | Q15: 1 | R15: 508316804 | S15: 2098 | U15: stCommon | V15: Журналистика | W15: =MATCH(D15,Отчет!$C:$C,0) -> 64
A16: 525603135 | B16: 9 | C16: БЖУР133 | D16: 475501776 | E16: Чернова | F16: Кристина | G16: Валериевна | H16: 1301219102 | I16: Иностранный язык (английский) | J16: 1.92 | K16: Экзамен | L16: 2014/2015 учебный год 3 модуль | N16: 17.28 | O16: 1.92 | P16: 1 | Q16: 1 | R16: 508316804 | S16: 2098 | U16: stCommon | V16: Журналистика | W16: =MATCH(D16,Отчет!$C:$C,0) -> 24
A17: 525603201 | B17: 9 | C17: БЖУР133 | D17: 475501916 | E17: Чернышева | F17: Евгения | G17: Эдуардовна | H17: 1301219103 | I17: Иностранный язык (английский) | J17: 1.92 | K17: Экзамен | L17: 2014/2015 учебный год 3 модуль | N17: 17.28 | O17: 1.92 | P17: 1 | Q17: 1 | R17: 508316804 | S17: 2098 | U17: stCommon | V17: Журналистика | W17: =MATCH(D17,Отчет!$C:$C,0) -> 42
A18: 525603723 | B18: 8 | C18: БЖУР134 | D18: 475502663 | E18: Вагапова | F18: Юлия | G18: Рстамовна | H18: 1301219016 | I18: Иностранный язык (английский) | J18: 1.92 | K18: Экзамен | L18: 2014/2015 учебный год 3 модуль | N18: 15.36 | O18: 1.92 | P18: 1 | Q18: 1 | R18: 508316804 | S18: 2098 | U18: stCommon | V18: Журналистика | W18: =MATCH(D18,Отчет!$C:$C,0) -> 43
A19: 525603855 | B19: 8 | C19: БЖУР134 | D19: 475502790 | E19: Дергалов | F19: Руслан | G19: Сергеевич | H19: 1301219028 | I19: Иностранный язык (английский) | J19: 1.92 | K19: Экзамен | L19: 2014/2015 учебный год 3 модуль | N19: 15.36 | O19: 1.92 | P19: 1 | Q19: 1 | R19: 508316804 | S19: 2098 | U19: stCommon | V19: Журналистика | W19: =MATCH(D19,Отчет!$C:$C,0) -> 62
A20: 525604321 | B20: 9 | C20: БЖУР134 | D20: 475502924 | E20: Литвякова | F20: Евдокия | G20: Алексеевна | H20: 1301219050 | I20: Иностранный язык (английский) | J20: 1.92 | K20: Экзамен | L20: 2014/2015 учебный год 3 модуль | N20: 17.28 | O20: 1.92 | P20: 1 | Q20: 1 | R20: 508316804 | S20: 2098 | U20: stCommon | V20: Журналистика | W20: =MATCH(D20,Отчет!$C:$C,0) -> 36
A21: 525604530 | B21: 7 | C21: БЖУР134 | D21: 475503059 | E21: Маркова | F21: Кристина | G21: Алексеевна | H21: 1301219058 | I21: Иностранный язык (английский) | J21: 1.92 | K21: Экзамен | L21: 2014/2015 учебный год 3 модуль | N21: 13.44 | O21: 1.92 | P21: 1 | Q21: 1 | R21: 508316804 | S21: 2098 | U21: stCommon | V21: Журналистика | W21: =MATCH(D21,Отчет!$C:$C,0) -> 76
A22: 525604798 | B22: 8 | C22: БЖУР134 | D22: 475503187 | E22: Робул | F22: Павел | G22: Константинович | H22: 1301219079 | I22: Иностранный язык (английский) | J22: 1.92 | K22: Экзамен | L22: 2014/2015 учебный год 3 модуль | N22: 15.36 | O22: 1.92 | P22: 1 | Q22: 1 | R22: 508316804 | S22: 2098 | U22: stCommon | V22: Журналистика | W22: =MATCH(D22,Отчет!$C:$C,0) -> 38
A23: 525602737 | B23: 9 | C23: БЖУР133 | D23: 475563521 | E23: Осипова | F23: Светлана | G23: Витальевна | H23: 1311219070 | I23: Иностранный язык (английский) | J23: 1.92 | K23: Экзамен | L23: 2014/2015 учебный год 3 модуль | N23: 17.28 | O23: 1.92 | P23: 1 | Q23: 0 | R23: 508316804 | S23: 2098 | U23: stCommon | V23: Журналистика | W23: =MATCH(D23,Отчет!$C:$C,0) -> 71
A24: 525603269 | B24: 10 | C24: БЖУР133 | D24: 475563678 | E24: Чехонадских | F24: Дарья | G24: Александровна | H24: 1301219104 | I24: Иностранный язык (английский) | J24: 1.92 | K24: Экзамен | L24: 2014/2015 учебный год 3 модуль | N24: 19.2 | O24: 1.92 | P24: 1 | Q24: 1 | R24: 508316804 | S24: 2098 | U24: stCommon | V24: Журналистика | W24: =MATCH(D24,Отчет!$C:$C,0) -> 81
A25: 525603654 | B25: 8 | C25: БЖУР134 | D25: 475564485 | E25: Басиладзе | F25: Мариами | G25: Рамазиевна | H25: 1311219007 | I25: Иностранный язык (английский) | J25: 1.92 | K25: Экзамен | L25: 2014/2015 учебный год 3 модуль | N25: 15.36 | O25: 1.92 | P25: 1 | Q25: 0 | R25: 508316804 | S25: 2098 | T25: ikPlanned | U25: stCommon | V25: Журналистика | W25: =MATCH(D25,Отчет!$C:$C,0) -> 80
A26: 525603789 | B26: 8 | C26: БЖУР134 | D26: 475564642 | E26: Гимаева | F26: Жанна | G26: Эмзаровна | H26: 1311219021 | I26: Иностранный язык (английский) | J26: 1.92 | K26: Экзамен | L26: 2014/2015 учебный год 3 модуль | N26: 15.36 | O26: 1.92 | P26: 1 | Q26: 0 | R26: 508316804 | S26: 2098 | U26: stCommon | V26: Журналистика | W26: =MATCH(D26,Отчет!$C:$C,0) -> 51
A27: 525603921 | B27: 7 | C27: БЖУР134 | D27: 475564787 | E27: Досий | F27: Зоряна | G27: Владимировна | H27: 1301219109 | I27: Иностранный язык (английский) | J27: 1.92 | K27: Экзамен | L27: 2014/2015 учебный год 3 модуль | N27: 13.44 | O27: 1.92 | P27: 1 | Q27: 1 | R27: 508316804 | S27: 2098 | T27: ikPlanned | U27: stCommon | V27: Журналистика | W27: =MATCH(D27,Отчет!$C:$C,0) -> 99
A28: 525603987 | B28: 8 | C28: БЖУР134 | D28: 475564933 | E28: Животнёв | F28: Владислав | G28: Николаевич | H28: 1311219035 | I28: Иностранный язык (английский) | J28: 1.92 | K28: Экзамен | L28: 2014/2015 учебный год 3 модуль | N28: 15.36 | O28: 1.92 | P28: 1 | Q28: 0 | R28: 508316804 | S28: 2098 | U28: stCommon | V28: Журналистика | W28: =MATCH(D28,Отчет!$C:$C,0) -> 75
A29: 525604053 | B29: 8 | C29: БЖУР134 | D29: 475565084 | E29: Зражаева | F29: Алина | G29: Сергеевна | H29: 1311219036 | I29: Иностранный язык (английский) | J29: 1.92 | K29: Экзамен | L29: 2014/2015 учебный год 3 модуль | N29: 15.36 | O29: 1.92 | P29: 1 | Q29: 0 | R29: 508316804 | S29: 2098 | U29: stCommon | V29: Журналистика | W29: =MATCH(D29,Отчет!$C:$C,0) -> 49
A30: 525604387 | B30: 8 | C30: БЖУР134 | D30: 475565231 | E30: Макарова | F30: Юлия | G30: Валерьевна | H30: 1311219054 | I30: Иностранный язык (английский) | J30: 1.92 | K30: Экзамен | L30: 2014/2015 учебный год 3 модуль | N30: 15.36 | O30: 1.92 | P30: 1 | Q30: 0 | R30: 508316804 | S30: 2098 | U30: stCommon | V30: Журналистика | W30: =MATCH(D30,Отчет!$C:$C,0) -> 70
A31: 525604453 | B31: 7 | C31: БЖУР134 | D31: 475565410 | E31: Маленкова | F31: Мария | G31: Александровна | H31: 1301219055 | I31: Иностранный язык (английский) | J31: 1.92 | K31: Экзамен | L31: 2014/2015 учебный год 3 модуль | N31: 13.44 | O31: 1.92 | P31: 1 | Q31: 1 | R31: 508316804 | S31: 2098 | U31: stCommon | V31: Журналистика | W31: =MATCH(D31,Отчет!$C:$C,0) -> 47
A32: 525604597 | B32: 7 | C32: БЖУР134 | D32: 475565551 | E32: Нарушевич | F32: Анастасия | G32: Александровна | H32: 1311219065 | I32: Иностранный язык (английский) | J32: 1.92 | K32: Экзамен | L32: 2014/2015 учебный год 3 модуль | N32: 13.44 | O32: 1.92 | P32: 1 | Q32: 0 | R32: 508316804 | S32: 2098 | U32: stCommon | V32: Журналистика | W32: =MATCH(D32,Отчет!$C:$C,0) -> 78
A33: 525605089 | B33: 7 | C33: БЖУР134 | D33: 475565869 | E33: Стешенкова | F33: Александра | G33: Евгеньевна | H33: 1301219088 | I33: Иностранный язык (английский) | J33: 1.92 | K33: Экзамен | L33: 2014/2015 учебный год 3 модуль | N33: 13.44 | O33: 1.92 | P33: 1 | Q33: 1 | R33: 508316804 | S33: 2098 | U33: stCommon | V33: Журналистика | W33: =MATCH(D33,Отчет!$C:$C,0) -> 79
A34: 525605021 | B34: 8 | C34: БЖУР134 | D34: 475503320 | E34: Селиванова | F34: Ксения | G34: Александровна | H34: 1301219084 | I34: Иностранный язык (английский) | J34: 1.92 | K34: Экзамен | L34: 2014/2015 учебный год 3 модуль | N34: 15.36 | O34: 1.92 | P34: 1 | Q34: 1 | R34: 508316804 | S34: 2098 | U34: stCommon | V34: Журналистика | W34: =MATCH(D34,Отчет!$C:$C,0) -> 83
A35: 525605160 | B35: 9 | C35: БЖУР134 | D35: 475503448 | E35: Суханова | F35: Юлия | G35: Александровна | H35: 1301219090 | I35: Иностранный язык (английский) | J35: 1.92 | K35: Экзамен | L35: 2014/2015 учебный год 3 модуль | N35: 17.28 | O35: 1.92 | P35: 1 | Q35: 1 | R35: 508316804 | S35: 2098 | U35: stCommon | V35: Журналистика | W35: =MATCH(D35,Отчет!$C:$C,0) -> 13
A36: 525605233 | B36: 8 | C36: БЖУР134 | D36: 475503575 | E36: Таиров | F36: Ринат | G36: Маратович | H36: 1301219091 | I36: Иностранный язык (английский) | J36: 1.92 | K36: Экзамен | L36: 2014/2015 учебный год 3 модуль | N36: 15.36 | O36: 1.92 | P36: 1 | Q36: 1 | R36: 508316804 | S36: 2098 | U36: stCommon | V36: Журналистика | W36: =MATCH(D36,Отчет!$C:$C,0) -> 53
A37: 525603067 | B37: 9 | C37: БЖУР133 | D37: 481502259 | E37: Титов | F37: Игорь | G37: Игоревич | H37: 1311219092 | I37: Иностранный язык (английский) | J37: 1.92 | K37: Экзамен | L37: 2014/2015 учебный год 3 модуль | N37: 17.28 | O37: 1.92 | P37: 1 | Q37: 0 | R37: 508316804 | S37: 2098 | U37: stCommon | V37: Журналистика | W37: =MATCH(D37,Отчет!$C:$C,0) -> 58
A38: 525604123 | B38: 9 | C38: БЖУР134 | D38: 481504306 | E38: Кокорева | F38: Мария | G38: Викторовна | H38: 1311219040 | I38: Иностранный язык (английский) | J38: 1.92 | K38: Экзамен | L38: 2014/2015 учебный год 3 модуль | N38: 17.28 | O38: 1.92 | P38: 1 | Q38: 0 | R38: 508316804 | S38: 2098 | U38: stCommon | V38: Журналистика | W38: =MATCH(D38,Отчет!$C:$C,0) -> 18
A39: 525604189 | B39: 9 | C39: БЖУР134 | D39: 481504458 | E39: Королева | F39: Ольга | G39: Викторовна | H39: 1311219044 | I39: Иностранный язык (английский) | J39: 1.92 | K39: Экзамен | L39: 2014/2015 учебный год 3 модуль | N39: 17.28 | O39: 1.92 | P39: 1 | Q39: 0 | R39: 508316804 | S39: 2098 | U39: stCommon | V39: Журналистика | W39: =MATCH(D39,Отчет!$C:$C,0) -> 14
A40: 525604255 | B40: 8 | C40: БЖУР134 | D40: 481504593 | E40: Круглова | F40: Ирина | G40: Викторовна | H40: 1311219047 | I40: Иностранный язык (английский) | J40: 1.92 | K40: Экзамен | L40: 2014/2015 учебный год 3 модуль | N40: 15.36 | O40: 1.92 | P40: 1 | Q40: 0 | R40: 508316804 | S40: 2098 | U40: stCommon | V40: Журналистика | W40: =MATCH(D40,Отчет!$C:$C,0) -> 32
A41: 525604665 | B41: 8 | C41: БЖУР134 | D41: 481504754 | E41: Петренко | F41: Валерия | G41: Денисовна | H41: 1311219073 | I41: Иностранный язык (английский) | J41: 1.92 | K41: Экзамен | L41: 2014/2015 учебный год 3 модуль | N41: 15.36 | O41: 1.92 | P41: 1 | Q41: 0 | R41: 508316804 | S41: 2098 | U41: stCommon | V41: Журналистика | W41: =MATCH(D41,Отчет!$C:$C,0) -> 88
A42: 525604876 | B42: 9 | C42: БЖУР134 | D42: 481504898 | E42: Русских | F42: Арина | G42: Сергеевна | H42: 1311219082 | I42: Иностранный язык (английский) | J42: 1.92 | K42: Экзамен | L42: 2014/2015 учебный год 3 модуль | N42: 17.28 | O42: 1.92 | P42: 1 | Q42: 0 | R42: 508316804 | S42: 2098 | U42: stCommon | V42: Журналистика | W42: =MATCH(D42,Отчет!$C:$C,0) -> 45
A43: 525597636 | B43: 8 | C43: БЖУР131 | D43: 475557752 | E43: Аветисян | F43: Виолетта | G43: Александровна | H43: 1311219001 | I43: Иностранный язык (английский) | J43: 1.92 | K43: Экзамен | L43: 2014/2015 учебный год 3 модуль | N43: 15.36 | O43: 1.92 | P43: 1 | Q43: 0 | R43: 508316804 | S43: 2098 | U43: stCommon | V43: Журналистика | W43: =MATCH(D43,Отчет!$C:$C,0) -> 74
A44: 525597978 | B44: 7 | C44: БЖУР131 | D44: 475557886 | E44: Белобеева | F44: Ангелина | G44: Анатольевна | H44: 1311219008 | I44: Иностранный язык (английский) | J44: 1.92 | K44: Экзамен | L44: 2014/2015 учебный год 3 модуль | N44: 13.44 | O44: 1.92 | P44: 1 | Q44: 0 | R44: 508316804 | S44: 2098 | T44: ikPlanned | U44: stCommon | V44: Журналистика | W44: =MATCH(D44,Отчет!$C:$C,0) -> 107
A45: 525598582 | B45: 7 | C45: БЖУР131 | D45: 475558344 | E45: Маммаева | F45: Фарида | G45: Сулеймановна | H45: 1301219057 | I45: Иностранный язык (английский) | J45: 1.92 | K45: Экзамен | L45: 2014/2015 учебный год 3 модуль | N45: 13.44 | O45: 1.92 | P45: 1 | Q45: 1 | R45: 508316804 | S45: 2098 | U45: stCommon | V45: Журналистика | W45: =MATCH(D45,Отчет!$C:$C,0) -> 101
A46: 525598990 | B46: 9 | C46: БЖУР131 | D46: 475558722 | E46: Пржевальская | F46: Анастасия | G46: Всеволодовна | H46: 1301219076 | I46: Иностранный язык (английский) | J46: 1.92 | K46: Экзамен | L46: 2014/2015 учебный год 3 модуль | N46: 17.28 | O46: 1.92 | P46: 1 | Q46: 1 | R46: 508316804 | S46: 2098 | U46: stCommon | V46: Журналистика | W46: =MATCH(D46,Отчет!$C:$C,0) -> 55
A47: 525604955 | B47: 9 | C47: БЖУР134 | D47: 481505031 | E47: Савина | F47: София | G47: Леонидовна | H47: 1311219083 | I47: Иностранный язык (английский) | J47: 1.92 | K47: Экзамен | L47: 2014/2015 учебный год 3 модуль | N47: 17.28 | O47: 1.92 | P47: 1 | Q47: 0 | R47: 508316804 | S47: 2098 | U47: stCommon | V47: Журналистика | W47: =MATCH(D47,Отчет!$C:$C,0) -> 19
A48: 525605299 | B48: 8 | C48: БЖУР134 | D48: 481505154 | E48: Швецова | F48: Екатерина | G48: Константиновна | H48: 1311219105 | I48: Иностранный язык (английский) | J48: 1.92 | K48: Экзамен | L48: 2014/2015 учебный год 3 модуль | N48: 15.36 | O48: 1.92 | P48: 1 | Q48: 0 | R48: 508316804 | S48: 2098 | U48: stCommon | V48: Журналистика | W48: =MATCH(D48,Отчет!$C:$C,0) -> 86
A49: 525599435 | B49: 8 | C49: БЖУР132 | D49: 475560308 | E49: Бидзионашвили | F49: Кетеван | G49: - | H49: 1301219111 | I49: Иностранный язык (английский) | J49: 1.92 | K49: Экзамен | L49: 2014/2015 учебный год 3 модуль | N49: 15.36 | O49: 1.92 | P49: 1 | Q49: 1 | R49: 508316804 | S49: 2098 | T49: ikPlanned | U49: stCommon | V49: Журналистика | W49: =MATCH(D49,Отчет!$C:$C,0) -> 90
A50: 525599571 | B50: 8 | C50: БЖУР132 | D50: 475560500 | E50: Буримова | F50: Александра | G50: Сергеевна | H50: 1311219014 | I50: Иностранный язык (английский) | J50: 1.92 | K50: Экзамен | L50: 2014/2015 учебный год 3 модуль | N50: 15.36 | O50: 1.92 | P50: 1 | Q50: 0 | R50: 508316804 | S50: 2098 | U50: stCommon | V50: Журналистика | W50: =MATCH(D50,Отчет!$C:$C,0) -> 96
A51: 523091844 | B51: 8 | C51: БЖУР132 | D51: 475560670 | E51: Бурцева | F51: Анастасия | G51: Юрьевна | H51: 1311219015 | I51: Иностранный язык (английский) | J51: 1.92 | K51: Экзамен | L51: 2014/2015 учебный год 3 модуль | N51: 15.36 | O51: 1.92 | P51: 1 | Q51: 0 | R51: 508316804 | S51: 2098 | U51: stCommon | V51: Журналистика | W51: =MATCH(D51,Отчет!$C:$C,0) -> 73
A52: 525599802 | B52: 9 | C52: БЖУР132 | D52: 475560846 | E52: Винокур | F52: Дана | G52: Витальевна | H52: 1311219018 | I52: Иностранный язык (английский) | J52: 1.92 | K52: Экзамен | L52: 2014/2015 учебный год 3 модуль | N52: 17.28 | O52: 1.92 | P52: 1 | Q52: 0 | R52: 508316804 | S52: 2098 | U52: stCommon | V52: Журналистика | W52: =MATCH(D52,Отчет!$C:$C,0) -> 85
A53: 525599868 | B53: 0 | C53: БЖУР132 | D53: 475561061 | E53: Вишнякова | F53: Екатерина | G53: Владимировна | H53: 1311219019 | I53: Иностранный язык (английский) | J53: 1.92 | K53: Экзамен | L53: 2014/2015 учебный год 3 модуль | N53: 0 | O53: 1.92 | P53: 0 | Q53: 0 | R53: 508316804 | S53: 2098 | U53: stCommon | V53: Журналистика | W53: =MATCH(D53,Отчет!$C:$C,0) -> 77
A54: 525599944 | B54: 8 | C54: БЖУР132 | D54: 475561255 | E54: Волчек | F54: Никита | G54: Алексеевич | H54: 1311219112 | I54: Иностранный язык (английский) | J54: 1.92 | K54: Экзамен | L54: 2014/2015 учебный год 3 модуль | N54: 15.36 | O54: 1.92 | P54: 1 | Q54: 0 | R54: 508316804 | S54: 2098 | T54: ikPlanned | U54: stCommon | V54: Журналистика | W54: =MATCH(D54,Отчет!$C:$C,0) -> 97
A55: 525600145 | B55: 8 | C55: БЖУР132 | D55: 475561427 | E55: Гранкова | F55: Ксения | G55: Сергеевна | H55: 1311219027 | I55: Иностранный язык (английский) | J55: 1.92 | K55: Экзамен | L55: 2014/2015 учебный год 3 модуль | N55: 15.36 | O55: 1.92 | P55: 1 | Q55: 0 | R55: 508316804 | S55: 2098 | T55: ikPlanned | U55: stCommon | V55: Журналистика | W55: =MATCH(D55,Отчет!$C:$C,0) -> 102
A56: 525601278 | B56: 8 | C56: БЖУР132 | D56: 475561559 | E56: Шевелёва | F56: Кристина | G56: Дмитриевна | H56: 1311219106 | I56: Иностранный язык (английский) | J56: 1.92 | K56: Экзамен | L56: 2014/2015 учебный год 3 модуль | N56: 15.36 | O56: 1.92 | P56: 1 | Q56: 0 | R56: 508316804 | S56: 2098 | T56: ikPlanned | U56: stCommon | V56: Журналистика | W56: =MATCH(D56,Отчет!$C:$C,0) -> 87
A57: 525601623 | B57: 9 | C57: БЖУР133 | D57: 475562216 | E57: Аммосова | F57: Людмила | G57: Михайловна | H57: 1311219002 | I57: Иностранный язык (английский) | J57: 1.92 | K57: Экзамен | L57: 2014/2015 учебный год 3 модуль | N57: 17.28 | O57: 1.92 | P57: 1 | Q57: 0 | R57: 508316804 | S57: 2098 | U57: stCommon | V57: Журналистика | W57: =MATCH(D57,Отчет!$C:$C,0) -> 39
A58: 525601755 | B58: 8 | C58: БЖУР133 | D58: 475562419 | E58: Афян | F58: Мария | G58: Геннадьевна | H58: 1311219006 | I58: Иностранный язык (английский) | J58: 1.92 | K58: Экзамен | L58: 2014/2015 учебный год 3 модуль | N58: 15.36 | O58: 1.92 | P58: 1 | Q58: 0 | R58: 508316804 | S58: 2098 | T58: ikPlanned | U58: stCommon | V58: Журналистика | W58: =MATCH(D58,Отчет!$C:$C,0) -> 69
A59: 525601896 | B59: 9 | C59: БЖУР133 | D59: 475562579 | E59: Герасимова | F59: Мария | G59: Александровна | H59: 1311219020 | I59: Иностранный язык (английский) | J59: 1.92 | K59: Экзамен | L59: 2014/2015 учебный год 3 модуль | N59: 17.28 | O59: 1.92 | P59: 1 | Q59: 0 | R59: 508316804 | S59: 2098 | U59: stCommon | V59: Журналистика | W59: =MATCH(D59,Отчет!$C:$C,0) -> 28
A60: 525602165 | B60: 8 | C60: БЖУР133 | D60: 475562897 | E60: Кистерев | F60: Алексей | G60: Валерьевич | H60: 12701089 | I60: Иностранный язык (английский) | J60: 1.92 | K60: Экзамен | L60: 2014/2015 учебный год 3 модуль | N60: 15.36 | O60: 1.92 | P60: 1 | Q60: 0 | R60: 508316804 | S60: 2098 | T60: ikPlanned | U60: stCommon | V60: Журналистика | W60: =MATCH(D60,Отчет!$C:$C,0) -> 105
A61: 525602463 | B61: 9 | C61: БЖУР133 | D61: 475563046 | E61: Люля | F61: Арина | G61: Артемовна | H61: 1311219053 | I61: Иностранный язык (английский) | J61: 1.92 | K61: Экзамен | L61: 2014/2015 учебный год 3 модуль | N61: 17.28 | O61: 1.92 | P61: 1 | Q61: 0 | R61: 508316804 | S61: 2098 | T61: ikPlanned | U61: stCommon | V61: Журналистика | W61: =MATCH(D61,Отчет!$C:$C,0) -> 91
A62: 525602529 | B62: 9 | C62: БЖУР133 | D62: 475563206 | E62: Малышева | F62: Ирина | G62: Александровна | H62: 1301219056 | I62: Иностранный язык (английский) | J62: 1.92 | K62: Экзамен | L62: 2014/2015 учебный год 3 модуль | N62: 17.28 | O62: 1.92 | P62: 1 | Q62: 1 | R62: 508316804 | S62: 2098 | U62: stCommon | V62: Журналистика | W62: =MATCH(D62,Отчет!$C:$C,0) -> 66
A63: 525602670 | B63: 9 | C63: БЖУР133 | D63: 475563331 | E63: Мусина | F63: Юлия | G63: Маратовна | H63: 1301219064 | I63: Иностранный язык (английский) | J63: 1.92 | K63: Экзамен | L63: 2014/2015 учебный год 3 модуль | N63: 17.28 | O63: 1.92 | P63: 1 | Q63: 1 | R63: 508316804 | S63: 2098 | U63: stCommon | V63: Журналистика | W63: =MATCH(D63,Отчет!$C:$C,0) -> 26
A64: 525600942 | B64: 9 | C64: БЖУР132 | D64: 475498778 | E64: Рудакова | F64: Юлия | G64: Владиславовна | H64: 1301219081 | I64: Иностранный язык (английский) | J64: 1.92 | K64: Экзамен | L64: 2014/2015 учебный год 3 модуль | N64: 17.28 | O64: 1.92 | P64: 1 | Q64: 1 | R64: 508316804 | S64: 2098 | U64: stCommon | V64: Журналистика | W64: =MATCH(D64,Отчет!$C:$C,0) -> 21
A65: 525601010 | B65: 9 | C65: БЖУР132 | D65: 475498901 | E65: Скворцова | F65: Дарья | G65: Андреевна | H65: 1301219086 | I65: Иностранный язык (английский) | J65: 1.92 | K65: Экзамен | L65: 2014/2015 учебный год 3 модуль | N65: 17.28 | O65: 1.92 | P65: 1 | Q65: 1 | R65: 508316804 | S65: 2098 | U65: stCommon | V65: Журналистика | W65: =MATCH(D65,Отчет!$C:$C,0) -> 17
A66: 525601146 | B66: 9 | C66: БЖУР132 | D66: 475499056 | E66: Федорова | F66: Анастасия | G66: Александровна | H66: 1301219096 | I66: Иностранный язык (английский) | J66: 1.92 | K66: Экзамен | L66: 2014/2015 учебный год 3 модуль | N66: 17.28 | O66: 1.92 | P66: 1 | Q66: 1 | R66: 508316804 | S66: 2098 | U66: stCommon | V66: Журналистика | W66: =MATCH(D66,Отчет!$C:$C,0) -> 30
A67: 525601080 | B67: 8 | C67: БЖУР132 | D67: 475499184 | E67: Устюжанинова | F67: Анна | G67: Александровна | H67: 1301219095 | I67: Иностранный язык (английский) | J67: 1.92 | K67: Экзамен | L67: 2014/2015 учебный год 3 модуль | N67: 15.36 | O67: 1.92 | P67: 1 | Q67: 1 | R67: 508316804 | S67: 2098 | U67: stCommon | V67: Журналистика | W67: =MATCH(D67,Отчет!$C:$C,0) -> 84
A68: 525598047 | B68: 9 | C68: БЖУР131 | D68: 475496297 | E68: Голубева | F68: Анастасия | G68: Павловна | H68: 1301219024 | I68: Иностранный язык (английский) | J68: 1.92 | K68: Экзамен | L68: 2014/2015 учебный год 3 модуль | N68: 17.28 | O68: 1.92 | P68: 1 | Q68: 1 | R68: 508316804 | S68: 2098 | U68: stCommon | V68: Журналистика | W68: =MATCH(D68,Отчет!$C:$C,0) -> 68
A69: 525598116 | B69: 7 | C69: БЖУР131 | D69: 475496974 | E69: Джгаркава | F69: Нино | G69: Звиадиевна | H69: 1301219029 | I69: Иностранный язык (английский) | J69: 1.92 | K69: Экзамен | L69: 2014/2015 учебный год 3 модуль | N69: 13.44 | O69: 1.92 | P69: 1 | Q69: 1 | R69: 508316804 | S69: 2098 | U69: stCommon | V69: Журналистика | W69: =MATCH(D69,Отчет!$C:$C,0) -> 93
A70: 525598183 | B70: 9 | C70: БЖУР131 | D70: 475497099 | E70: Дымчишина | F70: Александра | G70: Юрьевна | H70: 1301219032 | I70: Иностранный язык (английский) | J70: 1.92 | K70: Экзамен | L70: 2014/2015 учебный год 3 модуль | N70: 17.28 | O70: 1.92 | P70: 1 | Q70: 1 | R70: 508316804 | S70: 2098 | U70: stCommon | V70: Журналистика | W70: =MATCH(D70,Отчет!$C:$C,0) -> 65
A71: 525598316 | C71: БЖУР131 | D71: 475497229 | E71: Жвик | F71: Анастасия | G71: Николаевна | H71: 1301219110 | I71: Иностранный язык (английский) | J71: 1.92 | K71: Экзамен | L71: 2014/2015 учебный год 3 модуль | M71: 1 | N71: 0 | O71: 1.92 | Q71: 1 | R71: 508316804 | S71: 2098 | U71: stCommon | V71: Журналистика | W71: =MATCH(D71,Отчет!$C:$C,0) -> 110
A72: 525598856 | B72: 9 | C72: БЖУР131 | D72: 475497479 | E72: Николаева | F72: Мария | G72: Дмитриевна | H72: 1301219068 | I72: Иностранный язык (английский) | J72: 1.92 | K72: Экзамен | L72: 2014/2015 учебный год 3 модуль | N72: 17.28 | O72: 1.92 | P72: 1 | Q72: 1 | R72: 508316804 | S72: 2098 | U72: stCommon | V72: Журналистика | W72: =MATCH(D72,Отчет!$C:$C,0) -> 29
A73: 525599056 | B73: 9 | C73: БЖУР131 | D73: 475497611 | E73: Ставрианиди | F73: Анна | G73: Георгиевна | H73: 1301219087 | I73: Иностранный язык (английский) | J73: 1.92 | K73: Экзамен | L73: 2014/2015 учебный год 3 модуль | N73: 17.28 | O73: 1.92 | P73: 1 | Q73: 1 | R73: 508316804 | S73: 2098 | U73: stCommon | V73: Журналистика | W73: =MATCH(D73,Отчет!$C:$C,0) -> 50
A74: 525599122 | B74: 9 | C74: БЖУР131 | D74: 475497743 | E74: Тищенко | F74: Виктория | G74: Андреевна | H74: 1301219093 | I74: Иностранный язык (английский) | J74: 1.92 | K74: Экзамен | L74: 2014/2015 учебный год 3 модуль | N74: 17.28 | O74: 1.92 | P74: 1 | Q74: 1 | R74: 508316804 | S74: 2098 | U74: stCommon | V74: Журналистика | W74: =MATCH(D74,Отчет!$C:$C,0) -> 52
A75: 525599264 | B75: 9 | C75: БЖУР131 | D75: 475497867 | E75: Яковец | F75: Елизавета | G75: Николаевна | H75: 1301219107 | I75: Иностранный язык (английский) | J75: 1.92 | K75: Экзамен | L75: 2014/2015 учебный год 3 модуль | N75: 17.28 | O75: 1.92 | P75: 1 | Q75: 1 | R75: 508316804 | S75: 2098 | U75: stCommon | V75: Журналистика | W75: =MATCH(D75,Отчет!$C:$C,0) -> 27
A76: 525599505 | B76: 9 | C76: БЖУР132 | D76: 475498195 | E76: Булатова | F76: Катерина | G76: Николаевна | H76: 1301219012 | I76: Иностранный язык (английский) | J76: 1.92 | K76: Экзамен | L76: 2014/2015 учебный год 3 модуль | N76: 17.28 | O76: 1.92 | P76: 1 | Q76: 1 | R76: 508316804 | S76: 2098 | U76: stCommon | V76: Журналистика | W76: =MATCH(D76,Отчет!$C:$C,0) -> 34
A77: 525600211 | B77: 9 | C77: БЖУР132 | D77: 475498343 | E77: Дмитриева | F77: Ольга | G77: Олеговна | H77: 1301219031 | I77: Иностранный язык (английский) | J77: 1.92 | K77: Экзамен | L77: 2014/2015 учебный год 3 модуль | N77: 17.28 | O77: 1.92 | P77: 1 | Q77: 1 | R77: 508316804 | S77: 2098 | U77: stCommon | V77: Журналистика | W77: =MATCH(D77,Отчет!$C:$C,0) -> 59
A78: 525600676 | B78: 9 | C78: БЖУР132 | D78: 475498638 | E78: Огурцова | F78: Евгения | G78: Алексеевна | H78: 1301219069 | I78: Иностранный язык (английский) | J78: 1.92 | K78: Экзамен | L78: 2014/2015 учебный год 3 модуль | N78: 17.28 | O78: 1.92 | P78: 1 | Q78: 1 | R78: 508316804 | S78: 2098 | U78: stCommon | V78: Журналистика | W78: =MATCH(D78,Отчет!$C:$C,0) -> 37
A79: 525597826 | B79: 9 | C79: БЖУР131 | D79: 474332631 | E79: Астапенко | F79: Ольга | G79: Юрьевна | H79: 1301219003 | I79: Иностранный язык (английский) | J79: 1.92 | K79: Экзамен | L79: 2014/2015 учебный год 3 модуль | N79: 17.28 | O79: 1.92 | P79: 1 | Q79: 1 | R79: 508316804 | S79: 2098 | U79: stCommon | V79: Журналистика | W79: =MATCH(D79,Отчет!$C:$C,0) -> 44
A80: 525597901 | B80: 9 | C80: БЖУР131 | D80: 481496658 | E80: Афанасьева | F80: Татьяна | G80: Валерьевна | H80: 1311219005 | I80: Иностранный язык (английский) | J80: 1.92 | K80: Экзамен | L80: 2014/2015 учебный год 3 модуль | N80: 17.28 | O80: 1.92 | P80: 1 | Q80: 0 | R80: 508316804 | S80: 2098 | U80: stCommon | V80: Журналистика | W80: =MATCH(D80,Отчет!$C:$C,0) -> 33
A81: 525598249 | B81: 9 | C81: БЖУР131 | D81: 481496795 | E81: Ероносов | F81: Александр | G81: Эдуардович | H81: 1311219034 | I81: Иностранный язык (английский) | J81: 1.92 | K81: Экзамен | L81: 2014/2015 учебный год 3 модуль | N81: 17.28 | O81: 1.92 | P81: 1 | Q81: 0 | R81: 508316804 | S81: 2098 | U81: stCommon | V81: Журналистика | W81: =MATCH(D81,Отчет!$C:$C,0) -> 72
A82: 525598382 | B82: 8 | C82: БЖУР131 | D82: 481496924 | E82: Зубкевич | F82: Андрей | G82: Вадимович | H82: 1311219037 | I82: Иностранный язык (английский) | J82: 1.92 | K82: Экзамен | L82: 2014/2015 учебный год 3 модуль | N82: 15.36 | O82: 1.92 | P82: 1 | Q82: 0 | R82: 508316804 | S82: 2098 | U82: stCommon | V82: Журналистика | W82: =MATCH(D82,Отчет!$C:$C,0) -> 104
A83: 525598648 | B83: 9 | C83: БЖУР131 | D83: 481497225 | E83: Морозова | F83: Николь | G83: Дмитриевна | H83: 1311219062 | I83: Иностранный язык (английский) | J83: 1.92 | K83: Экзамен | L83: 2014/2015 учебный год 3 модуль | N83: 17.28 | O83: 1.92 | P83: 1 | Q83: 0 | R83: 508316804 | S83: 2098 | U83: stCommon | V83: Журналистика | W83: =MATCH(D83,Отчет!$C:$C,0) -> 22
A84: 525598714 | B84: 8 | C84: БЖУР131 | D84: 481497357 | E84: Муратова | F84: Анастасия | G84: Александровна | H84: 1311219063 | I84: Иностранный язык (английский) | J84: 1.92 | K84: Экзамен | L84: 2014/2015 учебный год 3 модуль | N84: 15.36 | O84: 1.92 | P84: 1 | Q84: 0 | R84: 508316804 | S84: 2098 | U84: stCommon | V84: Журналистика | W84: =MATCH(D84,Отчет!$C:$C,0) -> 56
A85: 525598780 | B85: 0 | C85: БЖУР131 | D85: 481497484 | E85: Нещадимова | F85: Дарья | G85: Викторовна | H85: 1311219067 | I85: Иностранный язык (английский) | J85: 1.92 | K85: Экзамен | L85: 2014/2015 учебный год 3 модуль | N85: 0 | O85: 1.92 | P85: 0 | Q85: 0 | R85: 508316804 | S85: 2098 | U85: stCommon | V85: Журналистика | W85: =MATCH(D85,Отчет!$C:$C,0) -> 54
A86: 525600010 | B86: 8 | C86: БЖУР132 | D86: 481498934 | E86: Глазунов | F86: Никита | G86: Сергеевич | H86: 116-24/12-036 | I86: Иностранный язык (английский) | J86: 1.92 | K86: Экзамен | L86: 2014/2015 учебный год 3 модуль | N86: 15.36 | O86: 1.92 | P86: 1 | Q86: 0 | R86: 508316804 | S86: 2098 | T86: ikPlanned | U86: stCommon | V86: Журналистика | W86: =MATCH(D86,Отчет!$C:$C,0) -> 106
A87: 525600076 | B87: 9 | C87: БЖУР132 | D87: 481499019 | E87: Голованов | F87: Сергей | G87: Сергеевич | H87: 1311219022 | I87: Иностранный язык (английский) | J87: 1.92 | K87: Экзамен | L87: 2014/2015 учебный год 3 модуль | N87: 17.28 | O87: 1.92 | P87: 1 | Q87: 0 | R87: 508316804 | S87: 2098 | U87: stCommon | V87: Журналистика | W87: =MATCH(D87,Отчет!$C:$C,0) -> 46
A88: 525600410 | B88: 9 | C88: БЖУР132 | D88: 481499520 | E88: Королева | F88: Виолетта | G88: Николаевна | H88: 1311219043 | I88: Иностранный язык (английский) | J88: 1.92 | K88: Экзамен | L88: 2014/2015 учебный год 3 модуль | N88: 17.28 | O88: 1.92 | P88: 1 | Q88: 0 | R88: 508316804 | S88: 2098 | U88: stCommon | V88: Журналистика | W88: =MATCH(D88,Отчет!$C:$C,0) -> 82
A89: 525600478 | B89: 9 | C89: БЖУР132 | D89: 481499652 | E89: Королькова | F89: Елизавета | G89: Дмитриевна | H89: 1311219045 | I89: Иностранный язык (английский) | J89: 1.92 | K89: Экзамен | L89: 2014/2015 учебный год 3 модуль | N89: 17.28 | O89: 1.92 | P89: 1 | Q89: 0 | R89: 508316804 | S89: 2098 | U89: stCommon | V89: Журналистика | W89: =MATCH(D89,Отчет!$C:$C,0) -> 16
A90: 525600544 | B90: 10 | C90: БЖУР132 | D90: 481500039 | E90: Лебедева | F90: Ксения | G90: Кирилловна | H90: 1311219048 | I90: Иностранный язык (английский) | J90: 1.92 | K90: Экзамен | L90: 2014/2015 учебный год 3 модуль | N90: 19.2 | O90: 1.92 | P90: 1 | Q90: 0 | R90: 508316804 | S90: 2098 | U90: stCommon | V90: Журналистика | W90: =MATCH(D90,Отчет!$C:$C,0) -> 15
A91: 525600610 | B91: 8 | C91: БЖУР132 | D91: 481500235 | E91: Немченко | F91: Илья | G91: Михайлович | H91: 1311219066 | I91: Иностранный язык (английский) | J91: 1.92 | K91: Экзамен | L91: 2014/2015 учебный год 3 модуль | N91: 15.36 | O91: 1.92 | P91: 1 | Q91: 0 | R91: 508316804 | S91: 2098 | U91: stCommon | V91: Журналистика | W91: =MATCH(D91,Отчет!$C:$C,0) -> 103
A92: 525600742 | B92: 8 | C92: БЖУР132 | D92: 481500392 | E92: Павлова | F92: Алиса | G92: Павловна | H92: 1311219071 | I92: Иностранный язык (английский) | J92: 1.92 | K92: Экзамен | L92: 2014/2015 учебный год 3 модуль | N92: 15.36 | O92: 1.92 | P92: 1 | Q92: 0 | R92: 508316804 | S92: 2098 | U92: stCommon | V92: Журналистика | W92: =MATCH(D92,Отчет!$C:$C,0) -> 89
A93: 525600808 | B93: 10 | C93: БЖУР132 | D93: 481500535 | E93: Правдюк | F93: Анна | G93: Сергеевна | H93: 1311219075 | I93: Иностранный язык (английский) | J93: 1.92 | K93: Экзамен | L93: 2014/2015 учебный год 3 модуль | N93: 19.2 | O93: 1.92 | P93: 1 | Q93: 0 | R93: 508316804 | S93: 2098 | U93: stCommon | V93: Журналистика | W93: =MATCH(D93,Отчет!$C:$C,0) -> 12
A94: 525600876 | B94: 9 | C94: БЖУР132 | D94: 481500688 | E94: Ревоненко | F94: Анна | G94: Николаевна | H94: 1311219078 | I94: Иностранный язык (английский) | J94: 1.92 | K94: Экзамен | L94: 2014/2015 учебный год 3 модуль | N94: 17.28 | O94: 1.92 | P94: 1 | Q94: 0 | R94: 508316804 | S94: 2098 | U94: stCommon | V94: Журналистика | W94: =MATCH(D94,Отчет!$C:$C,0) -> 23
A95: 525601212 | B95: 8 | C95: БЖУР132 | D95: 481500835 | E95: Цегалко | F95: Яна | G95: Николаевна | H95: 1311219101 | I95: Иностранный язык (английский) | J95: 1.92 | K95: Экзамен | L95: 2014/2015 учебный год 3 модуль | N95: 15.36 | O95: 1.92 | P95: 1 | Q95: 0 | R95: 508316804 | S95: 2098 | U95: stCommon | V95: Журналистика | W95: =MATCH(D95,Отчет!$C:$C,0) -> 61
A96: 525601689 | B96: 8 | C96: БЖУР133 | D96: 481501546 | E96: Атасунцев | F96: Александр | G96: Григорьевич | H96: 1311219004 | I96: Иностранный язык (английский) | J96: 1.92 | K96: Экзамен | L96: 2014/2015 учебный год 3 модуль | N96: 15.36 | O96: 1.92 | P96: 1 | Q96: 0 | R96: 508316804 | S96: 2098 | U96: stCommon | V96: Журналистика | W96: =MATCH(D96,Отчет!$C:$C,0) -> 67
A97: 525602397 | B97: 8 | C97: БЖУР133 | D97: 481501825 | E97: Лымарева | F97: Мария | G97: Андреевна | H97: 1311219052 | I97: Иностранный язык (английский) | J97: 1.92 | K97: Экзамен | L97: 2014/2015 учебный год 3 модуль | N97: 15.36 | O97: 1.92 | P97: 1 | Q97: 0 | R97: 508316804 | S97: 2098 | U97: stCommon | V97: Журналистика | W97: =MATCH(D97,Отчет!$C:$C,0) -> 108
A98: 525602596 | B98: 9 | C98: БЖУР133 | D98: 481501975 | E98: Молоствова | F98: Анна | G98: Александровна | H98: 1311219061 | I98: Иностранный язык (английский) | J98: 1.92 | K98: Экзамен | L98: 2014/2015 учебный год 3 модуль | N98: 17.28 | O98: 1.92 | P98: 1 | Q98: 0 | R98: 508316804 | S98: 2098 | U98: stCommon | V98: Журналистика | W98: =MATCH(D98,Отчет!$C:$C,0) -> 35
A99: 525602935 | B99: 9 | C99: БЖУР133 | D99: 481502112 | E99: Сидоров | F99: Всеволод | G99: Дмитриевич | H99: 1311219085 | I99: Иностранный язык (английский) | J99: 1.92 | K99: Экзамен | L99: 2014/2015 учебный год 3 модуль | N99: 17.28 | O99: 1.92 | P99: 1 | Q99: 0 | R99: 508316804 | S99: 2098 | U99: stCommon | V99: Журналистика | W99: =MATCH(D99,Отчет!$C:$C,0) -> 60
A100: 974751900 | C100: 248ж | D100: 475564380 | E100: Алешкина | F100: Александрина | G100: Александровна | H100: 231210002 | I100: Иностранный язык (английский) | J100: 3 | K100: Экзамен | L100: 2014/2015 учебный год 3 модуль | M100: 1 | N100: 0 | O100: 3 | Q100: 0 | R100: 508316804 | S100: 2098 | T100: ikPlanned | U100: stFacultative | V100: Журналистика | W100: =MATCH(D100,Отчет!$C:$C,0) -> 100
A101: 617793306 | B101: 8 | C101: БЖУР131 | D101: 580462633 | E101: Немкова | F101: Екатерина | G101: Дмитриевна | H101: 131232209 | I101: Иностранный язык (английский) | J101: 5 | K101: Экзамен | L101: 2014/2015 учебный год 3 модуль | N101: 40 | O101: 5 | P101: 1 | Q101: 0 | R101: 508316804 | S101: 2098 | T101: ikPlanned | U101: stCommon | V101: Журналистика | W101: =MATCH(D101,Отчет!$C:$C,0) -> 98
A102: 717898594 | B102: 10 | C102: БЖУР132 | D102: 481500535 | E102: Правдюк | F102: Анна | G102: Сергеевна | H102: 1311219075 | I102: Мегаполисы мира | J102: 0 | K102: Экзамен | L102: 2014/2015 учебный год 3 модуль | N102: 0 | O102: 0 | P102: 1 | Q102: 0 | S102: 5028 | U102: stFacultative | V102: Журналистика | W102: =MATCH(D102,Отчет!$C:$C,0) -> 12
A103: 828844212 | B103: 9 | C103: БЖУР133 | D103: 475563331 | E103: Мусина | F103: Юлия | G103: Маратовна | H103: 1301219064 | I103: Психология (включая основы социальной психологии) | J103: 3 | K103: Экзамен | L103: 2014/2015 учебный год 3 модуль | N103: 27 | O103: 3 | P103: 1 | Q103: 1 | R103: 508316804 | S103: 2098 | U103: stCommon | V103: Журналистика | W103: =MATCH(D103,Отчет!$C:$C,0) -> 26
A104: 828844166 | B104: 9 | C104: БЖУР132 | D104: 475498778 | E104: Рудакова | F104: Юлия | G104: Владиславовна | H104: 1301219081 | I104: Психология (включая основы социальной психологии) | J104: 3 | K104: Экзамен | L104: 2014/2015 учебный год 3 модуль | N104: 27 | O104: 3 | P104: 1 | Q104: 1 | R104: 508316804 | S104: 2098 | U104: stCommon | V104: Журналистика | W104: =MATCH(D104,Отчет!$C:$C,0) -> 21
A105: 828844168 | B105: 9 | C105: БЖУР132 | D105: 475498901 | E105: Скворцова | F105: Дарья | G105: Андреевна | H105: 1301219086 | I105: Психология (включая основы социальной психологии) | J105: 3 | K105: Экзамен | L105: 2014/2015 учебный год 3 модуль | N105: 27 | O105: 3 | P105: 1 | Q105: 1 | R105: 508316804 | S105: 2098 | U105: stCommon | V105: Журналистика | W105: =MATCH(D105,Отчет!$C:$C,0) -> 17
A106: 828844172 | B106: 9 | C106: БЖУР132 | D106: 475499056 | E106: Федорова | F106: Анастасия | G106: Александровна | H106: 1301219096 | I106: Психология (включая основы социальной психологии) | J106: 3 | K106: Экзамен | L106: 2014/2015 учебный год 3 модуль | N106: 27 | O106: 3 | P106: 1 | Q106: 1 | R106: 508316804 | S106: 2098 | U106: stCommon | V106: Журналистика | W106: =MATCH(D106,Отчет!$C:$C,0) -> 30
A107: 828844286 | B107: 7 | C107: БЖУР131 | D107: 475496297 | E107: Голубева | F107: Анастасия | G107: Павловна | H107: 1301219024 | I107: Психология (включая основы социальной психологии) | J107: 3 | K107: Экзамен | L107: 2014/2015 учебный год 3 модуль | N107: 21 | O107: 3 | P107: 1 | Q107: 1 | R107: 508316804 | S107: 2098 | U107: stCommon | V107: Журналистика | W107: =MATCH(D107,Отчет!$C:$C,0) -> 68
A108: 828844288 | B108: 7 | C108: БЖУР131 | D108: 475496974 | E108: Джгаркава | F108: Нино | G108: Звиадиевна | H108: 1301219029 | I108: Психология (включая основы социальной психологии) | J108: 3 | K108: Экзамен | L108: 2014/2015 учебный год 3 модуль | N108: 21 | O108: 3 | P108: 1 | Q108: 1 | R108: 508316804 | S108: 2098 | U108: stCommon | V108: Журналистика | W108: =MATCH(D108,Отчет!$C:$C,0) -> 93
A109: 828844064 | B109: 6 | C109: БЖУР131 | D109: 475497099 | E109: Дымчишина | F109: Александра | G109: Юрьевна | H109: 1301219032 | I109: Психология (включая основы социальной психологии) | J109: 3 | K109: Экзамен | L109: 2014/2015 учебный год 3 модуль | N109: 18 | O109: 3 | P109: 1 | Q109: 1 | R109: 508316804 | S109: 2098 | U109: stCommon | V109: Журналистика | W109: =MATCH(D109,Отчет!$C:$C,0) -> 65
A110: 828844070 | C110: БЖУР131 | D110: 475497229 | E110: Жвик | F110: Анастасия | G110: Николаевна | H110: 1301219110 | I110: Психология (включая основы социальной психологии) | J110: 3 | K110: Экзамен | L110: 2014/2015 учебный год 3 модуль | M110: 1 | N110: 0 | O110: 3 | Q110: 1 | R110: 508316804 | S110: 2098 | U110: stCommon | V110: Журналистика | W110: =MATCH(D110,Отчет!$C:$C,0) -> 110
A111: 828844089 | B111: 7 | C111: БЖУР131 | D111: 475497479 | E111: Николаева | F111: Мария | G111: Дмитриевна | H111: 1301219068 | I111: Психология (включая основы социальной психологии) | J111: 3 | K111: Экзамен | L111: 2014/2015 учебный год 3 модуль | N111: 21 | O111: 3 | P111: 1 | Q111: 1 | R111: 508316804 | S111: 2098 | U111: stCommon | V111: Журналистика | W111: =MATCH(D111,Отчет!$C:$C,0) -> 29
A112: 828844100 | B112: 8 | C112: БЖУР131 | D112: 475497611 | E112: Ставрианиди | F112: Анна | G112: Георгиевна | H112: 1301219087 | I112: Психология (включая основы социальной психологии) | J112: 3 | K112: Экзамен | L112: 2014/2015 учебный год 3 модуль | N112: 24 | O112: 3 | P112: 1 | Q112: 1 | R112: 508316804 | S112: 2098 | U112: stCommon | V112: Журналистика | W112: =MATCH(D112,Отчет!$C:$C,0) -> 50
A113: 828844103 | B113: 8 | C113: БЖУР131 | D113: 475497743 | E113: Тищенко | F113: Виктория | G113: Андреевна | H113: 1301219093 | I113: Психология (включая основы социальной психологии) | J113: 3 | K113: Экзамен | L113: 2014/2015 учебный год 3 модуль | N113: 24 | O113: 3 | P113: 1 | Q113: 1 | R113: 508316804 | S113: 2098 | U113: stCommon | V113: Журналистика | W113: =MATCH(D113,Отчет!$C:$C,0) -> 52
A114: 828844107 | B114: 7 | C114: БЖУР131 | D114: 475497867 | E114: Яковец | F114: Елизавета | G114: Николаевна | H114: 1301219107 | I114: Психология (включая основы социальной психологии) | J114: 3 | K114: Экзамен | L114: 2014/2015 учебный год 3 модуль | N114: 21 | O114: 3 | P114: 1 | Q114: 1 | R114: 508316804 | S114: 2098 | U114: stCommon | V114: Журналистика | W114: =MATCH(D114,Отчет!$C:$C,0) -> 27
A115: 828844119 | B115: 8 | C115: БЖУР132 | D115: 475498195 | E115: Булатова | F115: Катерина | G115: Николаевна | H115: 1301219012 | I115: Психология (включая основы социальной психологии) | J115: 3 | K115: Экзамен | L115: 2014/2015 учебный год 3 модуль | N115: 24 | O115: 3 | P115: 1 | Q115: 1 | R115: 508316804 | S115: 2098 | U115: stCommon | V115: Журналистика | W115: =MATCH(D115,Отчет!$C:$C,0) -> 34
A116: 828844143 | B116: 8 | C116: БЖУР132 | D116: 475498343 | E116: Дмитриева | F116: Ольга | G116: Олеговна | H116: 1301219031 | I116: Психология (включая основы социальной психологии) | J116: 3 | K116: Экзамен | L116: 2014/2015 учебный год 3 модуль | N116: 24 | O116: 3 | P116: 1 | Q116: 1 | R116: 508316804 | S116: 2098 | U116: stCommon | V116: Журналистика | W116: =MATCH(D116,Отчет!$C:$C,0) -> 59
A117: 828844158 | B117: 9 | C117: БЖУР132 | D117: 475498638 | E117: Огурцова | F117: Евгения | G117: Алексеевна | H117: 1301219069 | I117: Психология (включая основы социальной психологии) | J117: 3 | K117: Экзамен | L117: 2014/2015 учебный год 3 модуль | N117: 27 | O117: 3 | P117: 1 | Q117: 1 | R117: 508316804 | S117: 2098 | U117: stCommon | V117: Журналистика | W117: =MATCH(D117,Отчет!$C:$C,0) -> 37
A118: 828844280 | B118: 8 | C118: БЖУР131 | D118: 474332631 | E118: Астапенко | F118: Ольга | G118: Юрьевна | H118: 1301219003 | I118: Психология (включая основы социальной психологии) | J118: 3 | K118: Экзамен | L118: 2014/2015 учебный год 3 модуль | N118: 24 | O118: 3 | P118: 1 | Q118: 1 | R118: 508316804 | S118: 2098 | U118: stCommon | V118: Журналистика | W118: =MATCH(D118,Отчет!$C:$C,0) -> 44
A119: 828844282 | B119: 8 | C119: БЖУР131 | D119: 481496658 | E119: Афанасьева | F119: Татьяна | G119: Валерьевна | H119: 1311219005 | I119: Психология (включая основы социальной психологии) | J119: 3 | K119: Экзамен | L119: 2014/2015 учебный год 3 модуль | N119: 24 | O119: 3 | P119: 1 | Q119: 0 | R119: 508316804 | S119: 2098 | U119: stCommon | V119: Журналистика | W119: =MATCH(D119,Отчет!$C:$C,0) -> 33
A120: 828844068 | B120: 6 | C120: БЖУР131 | D120: 481496795 | E120: Ероносов | F120: Александр | G120: Эдуардович | H120: 1311219034 | I120: Психология (включая основы социальной психологии) | J120: 3 | K120: Экзамен | L120: 2014/2015 учебный год 3 модуль | N120: 18 | O120: 3 | P120: 1 | Q120: 0 | R120: 508316804 | S120: 2098 | U120: stCommon | V120: Журналистика | W120: =MATCH(D120,Отчет!$C:$C,0) -> 72
A121: 828844072 | B121: 6 | C121: БЖУР131 | D121: 481496924 | E121: Зубкевич | F121: Андрей | G121: Вадимович | H121: 1311219037 | I121: Психология (включая основы социальной психологии) | J121: 3 | K121: Экзамен | L121: 2014/2015 учебный год 3 модуль | N121: 18 | O121: 3 | P121: 1 | Q121: 0 | R121: 508316804 | S121: 2098 | U121: stCommon | V121: Журналистика | W121: =MATCH(D121,Отчет!$C:$C,0) -> 104
A122: 828844083 | B122: 9 | C122: БЖУР131 | D122: 481497225 | E122: Морозова | F122: Николь | G122: Дмитриевна | H122: 1311219062 | I122: Психология (включая основы социальной психологии) | J122: 3 | K122: Экзамен | L122: 2014/2015 учебный год 3 модуль | N122: 27 | O122: 3 | P122: 1 | Q122: 0 | R122: 508316804 | S122: 2098 | U122: stCommon | V122: Журналистика | W122: =MATCH(D122,Отчет!$C:$C,0) -> 22
A123: 828844085 | B123: 8 | C123: БЖУР131 | D123: 481497357 | E123: Муратова | F123: Анастасия | G123: Александровна | H123: 1311219063 | I123: Психология (включая основы социальной психологии) | J123: 3 | K123: Экзамен | L123: 2014/2015 учебный год 3 модуль | N123: 24 | O123: 3 | P123: 1 | Q123: 0 | R123: 508316804 | S123: 2098 | U123: stCommon | V123: Журналистика | W123: =MATCH(D123,Отчет!$C:$C,0) -> 56
A124: 828844087 | B124: 8 | C124: БЖУР131 | D124: 481497484 | E124: Нещадимова | F124: Дарья | G124: Викторовна | H124: 1311219067 | I124: Психология (включая основы социальной психологии) | J124: 3 | K124: Экзамен | L124: 2014/2015 учебный год 3 модуль | N124: 24 | O124: 3 | P124: 1 | Q124: 0 | R124: 508316804 | S124: 2098 | U124: stCommon | V124: Журналистика | W124: =MATCH(D124,Отчет!$C:$C,0) -> 54
A125: 828844134 | B125: 6 | C125: БЖУР132 | D125: 481498934 | E125: Глазунов | F125: Никита | G125: Сергеевич | H125: 116-24/12-036 | I125: Психология (включая основы социальной психологии) | J125: 3 | K125: Экзамен | L125: 2014/2015 учебный год 3 модуль | N125: 18 | O125: 3 | P125: 1 | Q125: 0 | R125: 508316804 | S125: 2098 | U125: stCommon | V125: Журналистика | W125: =MATCH(D125,Отчет!$C:$C,0) -> 106
A126: 828844137 | B126: 8 | C126: БЖУР132 | D126: 481499019 | E126: Голованов | F126: Сергей | G126: Сергеевич | H126: 1311219022 | I126: Психология (включая основы социальной психологии) | J126: 3 | K126: Экзамен | L126: 2014/2015 учебный год 3 модуль | N126: 24 | O126: 3 | P126: 1 | Q126: 0 | R126: 508316804 | S126: 2098 | U126: stCommon | V126: Журналистика | W126: =MATCH(D126,Отчет!$C:$C,0) -> 46
A127: 828844150 | B127: 7 | C127: БЖУР132 | D127: 481499520 | E127: Королева | F127: Виолетта | G127: Николаевна | H127: 1311219043 | I127: Психология (включая основы социальной психологии) | J127: 3 | K127: Экзамен | L127: 2014/2015 учебный год 3 модуль | N127: 21 | O127: 3 | P127: 1 | Q127: 0 | R127: 508316804 | S127: 2098 | U127: stCommon | V127: Журналистика | W127: =MATCH(D127,Отчет!$C:$C,0) -> 82
A128: 828844152 | B128: 9 | C128: БЖУР132 | D128: 481499652 | E128: Королькова | F128: Елизавета | G128: Дмитриевна | H128: 1311219045 | I128: Психология (включая основы социальной психологии) | J128: 3 | K128: Экзамен | L128: 2014/2015 учебный год 3 модуль | N128: 27 | O128: 3 | P128: 1 | Q128: 0 | R128: 508316804 | S128: 2098 | U128: stCommon | V128: Журналистика | W128: =MATCH(D128,Отчет!$C:$C,0) -> 16
A129: 828844154 | B129: 9 | C129: БЖУР132 | D129: 481500039 | E129: Лебедева | F129: Ксения | G129: Кирилловна | H129: 1311219048 | I129: Психология (включая основы социальной психологии) | J129: 3 | K129: Экзамен | L129: 2014/2015 учебный год 3 модуль | N129: 27 | O129: 3 | P129: 1 | Q129: 0 | R129: 508316804 | S129: 2098 | U129: stCommon | V129: Журналистика | W129: =MATCH(D129,Отчет!$C:$C,0) -> 15
A130: 828844156 | B130: 6 | C130: БЖУР132 | D130: 481500235 | E130: Немченко | F130: Илья | G130: Михайлович | H130: 1311219066 | I130: Психология (включая основы социальной психологии) | J130: 3 | K130: Экзамен | L130: 2014/2015 учебный год 3 модуль | N130: 18 | O130: 3 | P130: 1 | Q130: 0 | R130: 508316804 | S130: 2098 | U130: stCommon | V130: Журналистика | W130: =MATCH(D130,Отчет!$C:$C,0) -> 103
A131: 828844160 | B131: 7 | C131: БЖУР132 | D131: 481500392 | E131: Павлова | F131: Алиса | G131: Павловна | H131: 1311219071 | I131: Психология (включая основы социальной психологии) | J131: 3 | K131: Экзамен | L131: 2014/2015 учебный год 3 модуль | N131: 21 | O131: 3 | P131: 1 | Q131: 0 | R131: 508316804 | S131: 2098 | U131: stCommon | V131: Журналистика | W131: =MATCH(D131,Отчет!$C:$C,0) -> 89
A132: 828844162 | B132: 10 | C132: БЖУР132 | D132: 481500535 | E132: Правдюк | F132: Анна | G132: Сергеевна | H132: 1311219075 | I132: Психология (включая основы социальной психологии) | J132: 3 | K132: Экзамен | L132: 2014/2015 учебный год 3 модуль | N132: 30 | O132: 3 | P132: 1 | Q132: 0 | R132: 508316804 | S132: 2098 | U132: stCommon | V132: Журналистика | W132: =MATCH(D132,Отчет!$C:$C,0) -> 12
A133: 828844164 | B133: 9 | C133: БЖУР132 | D133: 481500688 | E133: Ревоненко | F133: Анна | G133: Николаевна | H133: 1311219078 | I133: Психология (включая основы социальной психологии) | J133: 3 | K133: Экзамен | L133: 2014/2015 учебный год 3 модуль | N133: 27 | O133: 3 | P133: 1 | Q133: 0 | R133: 508316804 | S133: 2098 | U133: stCommon | V133: Журналистика | W133: =MATCH(D133,Отчет!$C:$C,0) -> 23
A134: 828844174 | B134: 7 | C134: БЖУР132 | D134: 481500835 | E134: Цегалко | F134: Яна | G134: Николаевна | H134: 1311219101 | I134: Психология (включая основы социальной психологии) | J134: 3 | K134: Экзамен | L134: 2014/2015 учебный год 3 модуль | N134: 21 | O134: 3 | P134: 1 | Q134: 0 | R134: 508316804 | S134: 2098 | U134: stCommon | V134: Журналистика | W134: =MATCH(D134,Отчет!$C:$C,0) -> 61
A135: 828844183 | B135: 9 | C135: БЖУР133 | D135: 481501546 | E135: Атасунцев | F135: Александр | G135: Григорьевич | H135: 1311219004 | I135: Психология (включая основы социальной психологии) | J135: 3 | K135: Экзамен | L135: 2014/2015 учебный год 3 модуль | N135: 27 | O135: 3 | P135: 1 | Q135: 0 | R135: 508316804 | S135: 2098 | U135: stCommon | V135: Журналистика | W135: =MATCH(D135,Отчет!$C:$C,0) -> 67
A136: 828844204 | B136: 4 | C136: БЖУР133 | D136: 481501825 | E136: Лымарева | F136: Мария | G136: Андреевна | H136: 1311219052 | I136: Психология (включая основы социальной психологии) | J136: 3 | K136: Экзамен | L136: 2014/2015 учебный год 3 модуль | N136: 12 | O136: 3 | P136: 1 | Q136: 0 | R136: 508316804 | S136: 2098 | U136: stCommon | V136: Журналистика | W136: =MATCH(D136,Отчет!$C:$C,0) -> 108
A137: 828844210 | B137: 9 | C137: БЖУР133 | D137: 481501975 | E137: Молоствова | F137: Анна | G137: Александровна | H137: 1311219061 | I137: Психология (включая основы социальной психологии) | J137: 3 | K137: Экзамен | L137: 2014/2015 учебный год 3 модуль | N137: 27 | O137: 3 | P137: 1 | Q137: 0 | R137: 508316804 | S137: 2098 | U137: stCommon | V137: Журналистика | W137: =MATCH(D137,Отчет!$C:$C,0) -> 35
A138: 828844296 | B138: 7 | C138: БЖУР134 | D138: 475503575 | E138: Таиров | F138: Ринат | G138: Маратович | H138: 1301219091 | I138: Психология (включая основы социальной психологии) | J138: 3 | K138: Экзамен | L138: 2014/2015 учебный год 3 модуль | N138: 21 | O138: 3 | P138: 1 | Q138: 1 | R138: 508316804 | S138: 2098 | U138: stCommon | V138: Журналистика | W138: =MATCH(D138,Отчет!$C:$C,0) -> 53
A139: 828876098 | B139: 8 | C139: БЖУР131 | D139: 752764364 | E139: Масалова | F139: Анна | G139: Владиславовна | H139: 131232133 | I139: Психология (включая основы социальной психологии) | J139: 3 | K139: Экзамен | L139: 2014/2015 учебный год 3 модуль | N139: 24 | O139: 3 | P139: 1 | Q139: 0 | R139: 508316804 | S139: 2098 | U139: stCommon | V139: Журналистика | W139: =MATCH(D139,Отчет!$C:$C,0) -> 92
A140: 828879964 | B140: 8 | C140: БЖУР131 | D140: 580462633 | E140: Немкова | F140: Екатерина | G140: Дмитриевна | H140: 131232209 | I140: Психология (включая основы социальной психологии) | J140: 3 | K140: Экзамен | L140: 2014/2015 учебный год 3 модуль | N140: 24 | O140: 3 | P140: 1 | Q140: 0 | R140: 508316804 | S140: 2098 | U140: stCommon | V140: Журналистика | W140: =MATCH(D140,Отчет!$C:$C,0) -> 98
A141: 828880097 | B141: 7 | C141: БЖУР131 | D141: 615125946 | E141: Халилова | F141: Арзу | G141: Идаятовна | H141: 131232230 | I141: Психология (включая основы социальной психологии) | J141: 3 | K141: Экзамен | L141: 2014/2015 учебный год 3 модуль | N141: 21 | O141: 3 | P141: 1 | Q141: 0 | R141: 508316804 | S141: 2098 | U141: stCommon | V141: Журналистика | W141: =MATCH(D141,Отчет!$C:$C,0) -> 95
A142: 828880135 | C142: БЖУР131 | D142: 796834861 | E142: Тесфайе | F142: Анна-Мария | G142: Синтайе | H142: 10701175 | I142: Психология (включая основы социальной психологии) | J142: 3 | K142: Экзамен | L142: 2014/2015 учебный год 3 модуль | M142: 0 | N142: 0 | O142: 3 | Q142: 0 | R142: 508316804 | S142: 2098 | U142: stCommon | V142: Журналистика | W142: =MATCH(D142,Отчет!$C:$C,0) -> 109
A143: 828844170 | B143: 7 | C143: БЖУР132 | D143: 475499184 | E143: Устюжанинова | F143: Анна | G143: Александровна | H143: 1301219095 | I143: Психология (включая основы социальной психологии) | J143: 3 | K143: Экзамен | L143: 2014/2015 учебный год 3 модуль | N143: 21 | O143: 3 | P143: 1 | Q143: 1 | R143: 508316804 | S143: 2098 | U143: stCommon | V143: Журналистика | W143: =MATCH(D143,Отчет!$C:$C,0) -> 84
A144: 828844179 | B144: 8 | C144: БЖУР132 | D144: 475499320 | E144: Якубович | F144: Анастасия | G144: Александровна | H144: 1301219108 | I144: Психология (включая основы социальной психологии) | J144: 3 | K144: Экзамен | L144: 2014/2015 учебный год 3 модуль | N144: 24 | O144: 3 | P144: 1 | Q144: 1 | R144: 508316804 | S144: 2098 | U144: stCommon | V144: Журналистика | W144: =MATCH(D144,Отчет!$C:$C,0) -> 63
A145: 828844188 | B145: 9 | C145: БЖУР133 | D145: 475500480 | E145: Вильшанская | F145: Елена | G145: Андреевна | H145: 1301219017 | I145: Психология (включая основы социальной психологии) | J145: 3 | K145: Экзамен | L145: 2014/2015 учебный год 3 модуль | N145: 27 | O145: 3 | P145: 1 | Q145: 1 | R145: 508316804 | S145: 2098 | U145: stCommon | V145: Журналистика | W145: =MATCH(D145,Отчет!$C:$C,0) -> 31
A146: 828844192 | B146: 8 | C146: БЖУР133 | D146: 475500628 | E146: Головина | F146: Евгения | G146: Павловна | H146: 1301219023 | I146: Психология (включая основы социальной психологии) | J146: 3 | K146: Экзамен | L146: 2014/2015 учебный год 3 модуль | N146: 24 | O146: 3 | P146: 1 | Q146: 1 | R146: 508316804 | S146: 2098 | U146: stCommon | V146: Журналистика | W146: =MATCH(D146,Отчет!$C:$C,0) -> 41
A147: 828844194 | B147: 9 | C147: БЖУР133 | D147: 475500772 | E147: Дмитриева | F147: Екатерина | G147: Александровна | H147: 1301219030 | I147: Психология (включая основы социальной психологии) | J147: 3 | K147: Экзамен | L147: 2014/2015 учебный год 3 модуль | N147: 27 | O147: 3 | P147: 1 | Q147: 1 | R147: 508316804 | S147: 2098 | U147: stCommon | V147: Журналистика | W147: =MATCH(D147,Отчет!$C:$C,0) -> 40
A148: 828844196 | B148: 7 | C148: БЖУР133 | D148: 475500939 | E148: Еремина | F148: Анастасия | G148: Алексеевна | H148: 1301219033 | I148: Психология (включая основы социальной психологии) | J148: 3 | K148: Экзамен | L148: 2014/2015 учебный год 3 модуль | N148: 21 | O148: 3 | P148: 1 | Q148: 1 | R148: 508316804 | S148: 2098 | U148: stCommon | V148: Журналистика | W148: =MATCH(D148,Отчет!$C:$C,0) -> 94
A149: 828844200 | B149: 8 | C149: БЖУР133 | D149: 475501085 | E149: Кокшарова | F149: Александра | G149: Игоревна | H149: 1301219041 | I149: Психология (включая основы социальной психологии) | J149: 3 | K149: Экзамен | L149: 2014/2015 учебный год 3 модуль | N149: 24 | O149: 3 | P149: 1 | Q149: 1 | R149: 508316804 | S149: 2098 | U149: stCommon | V149: Журналистика | W149: =MATCH(D149,Отчет!$C:$C,0) -> 48
A150: 828844202 | B150: 10 | C150: БЖУР133 | D150: 475501239 | E150: Липчанская | F150: Анастасия | G150: Алексеевна | H150: 1301219049 | I150: Психология (включая основы социальной психологии) | J150: 3 | K150: Экзамен | L150: 2014/2015 учебный год 3 модуль | N150: 30 | O150: 3 | P150: 1 | Q150: 1 | R150: 508316804 | S150: 2098 | U150: stCommon | V150: Журналистика | W150: =MATCH(D150,Отчет!$C:$C,0) -> 20
A151: 828844217 | B151: 8 | C151: БЖУР133 | D151: 475501379 | E151: Пятибратова | F151: Екатерина | G151: Васильевна | H151: 1301219077 | I151: Психология (включая основы социальной психологии) | J151: 3 | K151: Экзамен | L151: 2014/2015 учебный год 3 модуль | N151: 24 | O151: 3 | P151: 1 | Q151: 1 | R151: 508316804 | S151: 2098 | U151: stCommon | V151: Журналистика | W151: =MATCH(D151,Отчет!$C:$C,0) -> 57
A152: 828844219 | B152: 9 | C152: БЖУР133 | D152: 475501513 | E152: Рублева | F152: Милена | G152: Валерьевна | H152: 1301219080 | I152: Психология (включая основы социальной психологии) | J152: 3 | K152: Экзамен | L152: 2014/2015 учебный год 3 модуль | N152: 27 | O152: 3 | P152: 1 | Q152: 1 | R152: 508316804 | S152: 2098 | U152: stCommon | V152: Журналистика | W152: =MATCH(D152,Отчет!$C:$C,0) -> 25
A153: 828844223 | B153: 8 | C153: БЖУР133 | D153: 475501641 | E153: Стрельцова | F153: Наталья | G153: Сергеевна | H153: 1301219089 | I153: Психология (включая основы социальной психологии) | J153: 3 | K153: Экзамен | L153: 2014/2015 учебный год 3 модуль | N153: 24 | O153: 3 | P153: 1 | Q153: 1 | R153: 508316804 | S153: 2098 | U153: stCommon | V153: Журналистика | W153: =MATCH(D153,Отчет!$C:$C,0) -> 64
A154: 828844227 | B154: 8 | C154: БЖУР133 | D154: 475501776 | E154: Чернова | F154: Кристина | G154: Валериевна | H154: 1301219102 | I154: Психология (включая основы социальной психологии) | J154: 3 | K154: Экзамен | L154: 2014/2015 учебный год 3 модуль | N154: 24 | O154: 3 | P154: 1 | Q154: 1 | R154: 508316804 | S154: 2098 | U154: stCommon | V154: Журналистика | W154: =MATCH(D154,Отчет!$C:$C,0) -> 24
A155: 828844229 | B155: 8 | C155: БЖУР133 | D155: 475501916 | E155: Чернышева | F155: Евгения | G155: Эдуардовна | H155: 1301219103 | I155: Психология (включая основы социальной психологии) | J155: 3 | K155: Экзамен | L155: 2014/2015 учебный год 3 модуль | N155: 24 | O155: 3 | P155: 1 | Q155: 1 | R155: 508316804 | S155: 2098 | U155: stCommon | V155: Журналистика | W155: =MATCH(D155,Отчет!$C:$C,0) -> 42
A156: 828844239 | B156: 7 | C156: БЖУР134 | D156: 475502663 | E156: Вагапова | F156: Юлия | G156: Рстамовна | H156: 1301219016 | I156: Психология (включая основы социальной психологии) | J156: 3 | K156: Экзамен | L156: 2014/2015 учебный год 3 модуль | N156: 21 | O156: 3 | P156: 1 | Q156: 1 | R156: 508316804 | S156: 2098 | U156: stCommon | V156: Журналистика | W156: =MATCH(D156,Отчет!$C:$C,0) -> 43
A157: 828844243 | B157: 6 | C157: БЖУР134 | D157: 475502790 | E157: Дергалов | F157: Руслан | G157: Сергеевич | H157: 1301219028 | I157: Психология (включая основы социальной психологии) | J157: 3 | K157: Экзамен | L157: 2014/2015 учебный год 3 модуль | N157: 18 | O157: 3 | P157: 1 | Q157: 1 | R157: 508316804 | S157: 2098 | U157: stCommon | V157: Журналистика | W157: =MATCH(D157,Отчет!$C:$C,0) -> 62
A158: 828844257 | B158: 8 | C158: БЖУР134 | D158: 475502924 | E158: Литвякова | F158: Евдокия | G158: Алексеевна | H158: 1301219050 | I158: Психология (включая основы социальной психологии) | J158: 3 | K158: Экзамен | L158: 2014/2015 учебный год 3 модуль | N158: 24 | O158: 3 | P158: 1 | Q158: 1 | R158: 508316804 | S158: 2098 | U158: stCommon | V158: Журналистика | W158: =MATCH(D158,Отчет!$C:$C,0) -> 36
A159: 828844264 | B159: 6 | C159: БЖУР134 | D159: 475503059 | E159: Маркова | F159: Кристина | G159: Алексеевна | H159: 1301219058 | I159: Психология (включая основы социальной психологии) | J159: 3 | K159: Экзамен | L159: 2014/2015 учебный год 3 модуль | N159: 18 | O159: 3 | P159: 1 | Q159: 1 | R159: 508316804 | S159: 2098 | U159: stCommon | V159: Журналистика | W159: =MATCH(D159,Отчет!$C:$C,0) -> 76
A160: 828844272 | B160: 8 | C160: БЖУР134 | D160: 475503187 | E160: Робул | F160: Павел | G160: Константинович | H160: 1301219079 | I160: Психология (включая основы социальной психологии) | J160: 3 | K160: Экзамен | L160: 2014/2015 учебный год 3 модуль | N160: 24 | O160: 3 | P160: 1 | Q160: 1 | R160: 508316804 | S160: 2098 | U160: stCommon | V160: Журналистика | W160: =MATCH(D160,Отчет!$C:$C,0) -> 38
A161: 828844214 | B161: 7 | C161: БЖУР133 | D161: 475563521 | E161: Осипова | F161: Светлана | G161: Витальевна | H161: 1311219070 | I161: Психология (включая основы социальной психологии) | J161: 3 | K161: Экзамен | L161: 2014/2015 учебный год 3 модуль | N161: 21 | O161: 3 | P161: 1 | Q161: 0 | R161: 508316804 | S161: 2098 | U161: stCommon | V161: Журналистика | W161: =MATCH(D161,Отчет!$C:$C,0) -> 71
A162: 828844231 | B162: 8 | C162: БЖУР133 | D162: 475563678 | E162: Чехонадских | F162: Дарья | G162: Александровна | H162: 1301219104 | I162: Психология (включая основы социальной психологии) | J162: 3 | K162: Экзамен | L162: 2014/2015 учебный год 3 модуль | N162: 24 | O162: 3 | P162: 1 | Q162: 1 | R162: 508316804 | S162: 2098 | U162: stCommon | V162: Журналистика | W162: =MATCH(D162,Отчет!$C:$C,0) -> 81
A163: 828844233 | B163: 6 | C163: 248ж | D163: 475564380 | E163: Алешкина | F163: Александрина | G163: Александровна | H163: 231210002 | I163: Психология (включая основы социальной психологии) | J163: 3 | K163: Экзамен | L163: 2014/2015 учебный год 3 модуль | N163: 18 | O163: 3 | P163: 1 | Q163: 0 | R163: 508316804 | S163: 2098 | U163: stCommon | V163: Журналистика | W163: =MATCH(D163,Отчет!$C:$C,0) -> 100
A164: 828844235 | B164: 6 | C164: БЖУР134 | D164: 475564485 | E164: Басиладзе | F164: Мариами | G164: Рамазиевна | H164: 1311219007 | I164: Психология (включая основы социальной психологии) | J164: 3 | K164: Экзамен | L164: 2014/2015 учебный год 3 модуль | N164: 18 | O164: 3 | P164: 1 | Q164: 0 | R164: 508316804 | S164: 2098 | U164: stCommon | V164: Журналистика | W164: =MATCH(D164,Отчет!$C:$C,0) -> 80
A165: 828844241 | B165: 6 | C165: БЖУР134 | D165: 475564642 | E165: Гимаева | F165: Жанна | G165: Эмзаровна | H165: 1311219021 | I165: Психология (включая основы социальной психологии) | J165: 3 | K165: Экзамен | L165: 2014/2015 учебный год 3 модуль | N165: 18 | O165: 3 | P165: 1 | Q165: 0 | R165: 508316804 | S165: 2098 | U165: stCommon | V165: Журналистика | W165: =MATCH(D165,Отчет!$C:$C,0) -> 51
A166: 828844245 | B166: 5 | C166: БЖУР134 | D166: 475564787 | E166: Досий | F166: Зоряна | G166: Владимировна | H166: 1301219109 | I166: Психология (включая основы социальной психологии) | J166: 3 | K166: Экзамен | L166: 2014/2015 учебный год 3 модуль | N166: 15 | O166: 3 | P166: 1 | Q166: 1 | R166: 508316804 | S166: 2098 | U166: stCommon | V166: Журналистика | W166: =MATCH(D166,Отчет!$C:$C,0) -> 99
A167: 828844247 | B167: 9 | C167: БЖУР134 | D167: 475564933 | E167: Животнёв | F167: Владислав | G167: Николаевич | H167: 1311219035 | I167: Психология (включая основы социальной психологии) | J167: 3 | K167: Экзамен | L167: 2014/2015 учебный год 3 модуль | N167: 27 | O167: 3 | P167: 1 | Q167: 0 | R167: 508316804 | S167: 2098 | U167: stCommon | V167: Журналистика | W167: =MATCH(D167,Отчет!$C:$C,0) -> 75
A168: 828844249 | B168: 9 | C168: БЖУР134 | D168: 475565084 | E168: Зражаева | F168: Алина | G168: Сергеевна | H168: 1311219036 | I168: Психология (включая основы социальной психологии) | J168: 3 | K168: Экзамен | L168: 2014/2015 учебный год 3 модуль | N168: 27 | O168: 3 | P168: 1 | Q168: 0 | R168: 508316804 | S168: 2098 | U168: stCommon | V168: Журналистика | W168: =MATCH(D168,Отчет!$C:$C,0) -> 49
A169: 828844259 | B169: 7 | C169: БЖУР134 | D169: 475565231 | E169: Макарова | F169: Юлия | G169: Валерьевна | H169: 1311219054 | I169: Психология (включая основы социальной психологии) | J169: 3 | K169: Экзамен | L169: 2014/2015 учебный год 3 модуль | N169: 21 | O169: 3 | P169: 1 | Q169: 0 | R169: 508316804 | S169: 2098 | U169: stCommon | V169: Журналистика | W169: =MATCH(D169,Отчет!$C:$C,0) -> 70
A170: 828844262 | B170: 6 | C170: БЖУР134 | D170: 475565410 | E170: Маленкова | F170: Мария | G170: Александровна | H170: 1301219055 | I170: Психология (включая основы социальной психологии) | J170: 3 | K170: Экзамен | L170: 2014/2015 учебный год 3 модуль | N170: 18 | O170: 3 | P170: 1 | Q170: 1 | R170: 508316804 | S170: 2098 | U170: stCommon | V170: Журналистика | W170: =MATCH(D170,Отчет!$C:$C,0) -> 47
A171: 828844266 | B171: 7 | C171: БЖУР134 | D171: 475565551 | E171: Нарушевич | F171: Анастасия | G171: Александровна | H171: 1311219065 | I171: Психология (включая основы социальной психологии) | J171: 3 | K171: Экзамен | L171: 2014/2015 учебный год 3 модуль | N171: 21 | O171: 3 | P171: 1 | Q171: 0 | R171: 508316804 | S171: 2098 | U171: stCommon | V171: Журналистика | W171: =MATCH(D171,Отчет!$C:$C,0) -> 78
A172: 828844292 | B172: 6 | C172: БЖУР134 | D172: 475565869 | E172: Стешенкова | F172: Александра | G172: Евгеньевна | H172: 1301219088 | I172: Психология (включая основы социальной психологии) | J172: 3 | K172: Экзамен | L172: 2014/2015 учебный год 3 модуль | N172: 18 | O172: 3 | P172: 1 | Q172: 1 | R172: 508316804 | S172: 2098 | U172: stCommon | V172: Журналистика | W172: =MATCH(D172,Отчет!$C:$C,0) -> 79
A173: 828844290 | B173: 6 | C173: БЖУР134 | D173: 475503320 | E173: Селиванова | F173: Ксения | G173: Александровна | H173: 1301219084 | I173: Психология (включая основы социальной психологии) | J173: 3 | K173: Экзамен | L173: 2014/2015 учебный год 3 модуль | N173: 18 | O173: 3 | P173: 1 | Q173: 1 | R173: 508316804 | S173: 2098 | U173: stCommon | V173: Журналистика | W173: =MATCH(D173,Отчет!$C:$C,0) -> 83
A174: 828844294 | B174: 9 | C174: БЖУР134 | D174: 475503448 | E174: Суханова | F174: Юлия | G174: Александровна | H174: 1301219090 | I174: Психология (включая основы социальной психологии) | J174: 3 | K174: Экзамен | L174: 2014/2015 учебный год 3 модуль | N174: 27 | O174: 3 | P174: 1 | Q174: 1 | R174: 508316804 | S174: 2098 | U174: stCommon | V174: Журналистика | W174: =MATCH(D174,Отчет!$C:$C,0) -> 13
A175: 828844221 | B175: 8 | C175: БЖУР133 | D175: 481502112 | E175: Сидоров | F175: Всеволод | G175: Дмитриевич | H175: 1311219085 | I175: Психология (включая основы социальной психологии) | J175: 3 | K175: Экзамен | L175: 2014/2015 учебный год 3 модуль | N175: 24 | O175: 3 | P175: 1 | Q175: 0 | R175: 508316804 | S175: 2098 | U175: stCommon | V175: Журналистика | W175: =MATCH(D175,Отчет!$C:$C,0) -> 60
A176: 828844225 | B176: 7 | C176: БЖУР133 | D176: 481502259 | E176: Титов | F176: Игорь | G176: Игоревич | H176: 1311219092 | I176: Психология (включая основы социальной психологии) | J176: 3 | K176: Экзамен | L176: 2014/2015 учебный год 3 модуль | N176: 21 | O176: 3 | P176: 1 | Q176: 0 | R176: 508316804 | S176: 2098 | U176: stCommon | V176: Журналистика | W176: =MATCH(D176,Отчет!$C:$C,0) -> 58
A177: 828844251 | B177: 9 | C177: БЖУР134 | D177: 481504306 | E177: Кокорева | F177: Мария | G177: Викторовна | H177: 1311219040 | I177: Психология (включая основы социальной психологии) | J177: 3 | K177: Экзамен | L177: 2014/2015 учебный год 3 модуль | N177: 27 | O177: 3 | P177: 1 | Q177: 0 | R177: 508316804 | S177: 2098 | U177: stCommon | V177: Журналистика | W177: =MATCH(D177,Отчет!$C:$C,0) -> 18
A178: 828844253 | B178: 9 | C178: БЖУР134 | D178: 481504458 | E178: Королева | F178: Ольга | G178: Викторовна | H178: 1311219044 | I178: Психология (включая основы социальной психологии) | J178: 3 | K178: Экзамен | L178: 2014/2015 учебный год 3 модуль | N178: 27 | O178: 3 | P178: 1 | Q178: 0 | R178: 508316804 | S178: 2098 | U178: stCommon | V178: Журналистика | W178: =MATCH(D178,Отчет!$C:$C,0) -> 14
A179: 828844255 | B179: 9 | C179: БЖУР134 | D179: 481504593 | E179: Круглова | F179: Ирина | G179: Викторовна | H179: 1311219047 | I179: Психология (включая основы социальной психологии) | J179: 3 | K179: Экзамен | L179: 2014/2015 учебный год 3 модуль | N179: 27 | O179: 3 | P179: 1 | Q179: 0 | R179: 508316804 | S179: 2098 | U179: stCommon | V179: Журналистика | W179: =MATCH(D179,Отчет!$C:$C,0) -> 32
A180: 828844268 | B180: 7 | C180: БЖУР134 | D180: 481504754 | E180: Петренко | F180: Валерия | G180: Денисовна | H180: 1311219073 | I180: Психология (включая основы социальной психологии) | J180: 3 | K180: Экзамен | L180: 2014/2015 учебный год 3 модуль | N180: 21 | O180: 3 | P180: 1 | Q180: 0 | R180: 508316804 | S180: 2098 | U180: stCommon | V180: Журналистика | W180: =MATCH(D180,Отчет!$C:$C,0) -> 88
A181: 828844274 | B181: 6 | C181: БЖУР134 | D181: 481504898 | E181: Русских | F181: Арина | G181: Сергеевна | H181: 1311219082 | I181: Психология (включая основы социальной психологии) | J181: 3 | K181: Экзамен | L181: 2014/2015 учебный год 3 модуль | N181: 18 | O181: 3 | P181: 1 | Q181: 0 | R181: 508316804 | S181: 2098 | U181: stCommon | V181: Журналистика | W181: =MATCH(D181,Отчет!$C:$C,0) -> 45
A182: 828844278 | B182: 7 | C182: БЖУР131 | D182: 475557752 | E182: Аветисян | F182: Виолетта | G182: Александровна | H182: 1311219001 | I182: Психология (включая основы социальной психологии) | J182: 3 | K182: Экзамен | L182: 2014/2015 учебный год 3 модуль | N182: 21 | O182: 3 | P182: 1 | Q182: 0 | R182: 508316804 | S182: 2098 | U182: stCommon | V182: Журналистика | W182: =MATCH(D182,Отчет!$C:$C,0) -> 74
A183: 828844284 | B183: 5 | C183: БЖУР131 | D183: 475557886 | E183: Белобеева | F183: Ангелина | G183: Анатольевна | H183: 1311219008 | I183: Психология (включая основы социальной психологии) | J183: 3 | K183: Экзамен | L183: 2014/2015 учебный год 3 модуль | N183: 15 | O183: 3 | P183: 1 | Q183: 0 | R183: 508316804 | S183: 2098 | U183: stCommon | V183: Журналистика | W183: =MATCH(D183,Отчет!$C:$C,0) -> 107
A184: 828844080 | B184: 5 | C184: БЖУР131 | D184: 475558344 | E184: Маммаева | F184: Фарида | G184: Сулеймановна | H184: 1301219057 | I184: Психология (включая основы социальной психологии) | J184: 3 | K184: Экзамен | L184: 2014/2015 учебный год 3 модуль | N184: 15 | O184: 3 | P184: 1 | Q184: 1 | R184: 508316804 | S184: 2098 | U184: stCommon | V184: Журналистика | W184: =MATCH(D184,Отчет!$C:$C,0) -> 101
A185: 828844098 | B185: 6 | C185: БЖУР131 | D185: 475558722 | E185: Пржевальская | F185: Анастасия | G185: Всеволодовна | H185: 1301219076 | I185: Психология (включая основы социальной психологии) | J185: 3 | K185: Экзамен | L185: 2014/2015 учебный год 3 модуль | N185: 18 | O185: 3 | P185: 1 | Q185: 1 | R185: 508316804 | S185: 2098 | U185: stCommon | V185: Журналистика | W185: =MATCH(D185,Отчет!$C:$C,0) -> 55
A186: 828844276 | B186: 9 | C186: БЖУР134 | D186: 481505031 | E186: Савина | F186: София | G186: Леонидовна | H186: 1311219083 | I186: Психология (включая основы социальной психологии) | J186: 3 | K186: Экзамен | L186: 2014/2015 учебный год 3 модуль | N186: 27 | O186: 3 | P186: 1 | Q186: 0 | R186: 508316804 | S186: 2098 | U186: stCommon | V186: Журналистика | W186: =MATCH(D186,Отчет!$C:$C,0) -> 19
A187: 828844298 | B187: 7 | C187: БЖУР134 | D187: 481505154 | E187: Швецова | F187: Екатерина | G187: Константиновна | H187: 1311219105 | I187: Психология (включая основы социальной психологии) | J187: 3 | K187: Экзамен | L187: 2014/2015 учебный год 3 модуль | N187: 21 | O187: 3 | P187: 1 | Q187: 0 | R187: 508316804 | S187: 2098 | U187: stCommon | V187: Журналистика | W187: =MATCH(D187,Отчет!$C:$C,0) -> 86
A188: 828844112 | B188: 7 | C188: БЖУР132 | D188: 475560308 | E188: Бидзионашвили | F188: Кетеван | G188: - | H188: 1301219111 | I188: Психология (включая основы социальной психологии) | J188: 3 | K188: Экзамен | L188: 2014/2015 учебный год 3 модуль | N188: 21 | O188: 3 | P188: 1 | Q188: 1 | R188: 508316804 | S188: 2098 | U188: stCommon | V188: Журналистика | W188: =MATCH(D188,Отчет!$C:$C,0) -> 90
A189: 828844124 | B189: 7 | C189: БЖУР132 | D189: 475560500 | E189: Буримова | F189: Александра | G189: Сергеевна | H189: 1311219014 | I189: Психология (включая основы социальной психологии) | J189: 3 | K189: Экзамен | L189: 2014/2015 учебный год 3 модуль | N189: 21 | O189: 3 | P189: 1 | Q189: 0 | R189: 508316804 | S189: 2098 | U189: stCommon | V189: Журналистика | W189: =MATCH(D189,Отчет!$C:$C,0) -> 96
A190: 828844300 | B190: 7 | C190: БЖУР132 | D190: 475560670 | E190: Бурцева | F190: Анастасия | G190: Юрьевна | H190: 1311219015 | I190: Психология (включая основы социальной психологии) | J190: 3 | K190: Экзамен | L190: 2014/2015 учебный год 3 модуль | N190: 21 | O190: 3 | P190: 1 | Q190: 0 | R190: 508316804 | S190: 2098 | U190: stCommon | V190: Журналистика | W190: =MATCH(D190,Отчет!$C:$C,0) -> 73
A191: 828844127 | B191: 6 | C191: БЖУР132 | D191: 475560846 | E191: Винокур | F191: Дана | G191: Витальевна | H191: 1311219018 | I191: Психология (включая основы социальной психологии) | J191: 3 | K191: Экзамен | L191: 2014/2015 учебный год 3 модуль | N191: 18 | O191: 3 | P191: 1 | Q191: 0 | R191: 508316804 | S191: 2098 | U191: stCommon | V191: Журналистика | W191: =MATCH(D191,Отчет!$C:$C,0) -> 85
A192: 828844130 | B192: 9 | C192: БЖУР132 | D192: 475561061 | E192: Вишнякова | F192: Екатерина | G192: Владимировна | H192: 1311219019 | I192: Психология (включая основы социальной психологии) | J192: 3 | K192: Экзамен | L192: 2014/2015 учебный год 3 модуль | N192: 27 | O192: 3 | P192: 1 | Q192: 0 | R192: 508316804 | S192: 2098 | U192: stCommon | V192: Журналистика | W192: =MATCH(D192,Отчет!$C:$C,0) -> 77
A193: 828844132 | B193: 9 | C193: БЖУР132 | D193: 475561255 | E193: Волчек | F193: Никита | G193: Алексеевич | H193: 1311219112 | I193: Психология (включая основы социальной психологии) | J193: 3 | K193: Экзамен | L193: 2014/2015 учебный год 3 модуль | N193: 27 | O193: 3 | P193: 1 | Q193: 0 | R193: 508316804 | S193: 2098 | U193: stCommon | V193: Журналистика | W193: =MATCH(D193,Отчет!$C:$C,0) -> 97
A194: 828844140 | B194: 6 | C194: БЖУР132 | D194: 475561427 | E194: Гранкова | F194: Ксения | G194: Сергеевна | H194: 1311219027 | I194: Психология (включая основы социальной психологии) | J194: 3 | K194: Экзамен | L194: 2014/2015 учебный год 3 модуль | N194: 18 | O194: 3 | P194: 1 | Q194: 0 | R194: 508316804 | S194: 2098 | U194: stCommon | V194: Журналистика | W194: =MATCH(D194,Отчет!$C:$C,0) -> 102
A195: 828844177 | B195: 8 | C195: БЖУР132 | D195: 475561559 | E195: Шевелёва | F195: Кристина | G195: Дмитриевна | H195: 1311219106 | I195: Психология (включая основы социальной психологии) | J195: 3 | K195: Экзамен | L195: 2014/2015 учебный год 3 модуль | N195: 24 | O195: 3 | P195: 1 | Q195: 0 | R195: 508316804 | S195: 2098 | U195: stCommon | V195: Журналистика | W195: =MATCH(D195,Отчет!$C:$C,0) -> 87
A196: 828844181 | B196: 8 | C196: БЖУР133 | D196: 475562216 | E196: Аммосова | F196: Людмила | G196: Михайловна | H196: 1311219002 | I196: Психология (включая основы социальной психологии) | J196: 3 | K196: Экзамен | L196: 2014/2015 учебный год 3 модуль | N196: 24 | O196: 3 | P196: 1 | Q196: 0 | R196: 508316804 | S196: 2098 | U196: stCommon | V196: Журналистика | W196: =MATCH(D196,Отчет!$C:$C,0) -> 39
A197: 828844186 | B197: 7 | C197: БЖУР133 | D197: 475562419 | E197: Афян | F197: Мария | G197: Геннадьевна | H197: 1311219006 | I197: Психология (включая основы социальной психологии) | J197: 3 | K197: Экзамен | L197: 2014/2015 учебный год 3 модуль | N197: 21 | O197: 3 | P197: 1 | Q197: 0 | R197: 508316804 | S197: 2098 | U197: stCommon | V197: Журналистика | W197: =MATCH(D197,Отчет!$C:$C,0) -> 69
A198: 828844190 | B198: 10 | C198: БЖУР133 | D198: 475562579 | E198: Герасимова | F198: Мария | G198: Александровна | H198: 1311219020 | I198: Психология (включая основы социальной психологии) | J198: 3 | K198: Экзамен | L198: 2014/2015 учебный год 3 модуль | N198: 30 | O198: 3 | P198: 1 | Q198: 0 | R198: 508316804 | S198: 2098 | U198: stCommon | V198: Журналистика | W198: =MATCH(D198,Отчет!$C:$C,0) -> 28
A199: 828844198 | B199: 4 | C199: БЖУР133 | D199: 475562897 | E199: Кистерев | F199: Алексей | G199: Валерьевич | H199: 12701089 | I199: Психология (включая основы социальной психологии) | J199: 3 | K199: Экзамен | L199: 2014/2015 учебный год 3 модуль | N199: 12 | O199: 3 | P199: 1 | Q199: 0 | R199: 508316804 | S199: 2098 | U199: stCommon | V199: Журналистика | W199: =MATCH(D199,Отчет!$C:$C,0) -> 105
A200: 828844206 | B200: 6 | C200: БЖУР133 | D200: 475563046 | E200: Люля | F200: Арина | G200: Артемовна | H200: 1311219053 | I200: Психология (включая основы социальной психологии) | J200: 3 | K200: Экзамен | L200: 2014/2015 учебный год 3 модуль | N200: 18 | O200: 3 | P200: 1 | Q200: 0 | R200: 508316804 | S200: 2098 | U200: stCommon | V200: Журналистика | W200: =MATCH(D200,Отчет!$C:$C,0) -> 91
... 1031 more rows
